Body Name,Body,Service Division Label,Service Division Code,Organisational Unit,Expenditure Category,Expenditure Code,CIPFA detailed expediture type,CIPFA detailed expediture code,Narrative,Date,Transaction number,Net Amount,Capital and Revenue,Supplier Name,Supplier ID,,
Chorley Borough Council,http://statistics.data.gov.uk/id/local-authority/30UE,Culture & Heritage,1036,GROW - Commercial & Property,Tools & Equipment - Maintenance,40005,"Equipment, Furniture & Materia",5023,"Mark speed hump and 2 disabled parking bays., As per quote. , 525 NET",24/05/2023,0180342,525.00,Revenue,A1 Streamline Road Markings LTD,21544,,
Chorley Borough Council,http://statistics.data.gov.uk/id/local-authority/30UE,Central Support Services,1009,GOVN - Policy & Governance,Exhibitions & Special Events,40158,Miscellaneous Expenses,5034,Supply & Set Up Audio & Visual Equipment for Innovation Event @ Botany Bay on 19th April 2023,03/05/2023,0179930,"5,000.00",Revenue,Active AV Ltd,21379,,
Chorley Borough Council,http://statistics.data.gov.uk/id/local-authority/30UE,Central Support Services,1009,CUST - Customer & Digital,Telephones - Other,40085,Communication and Computing,5028,Adept Telecoms - April + May 23,31/05/2023,0180543,"2,034.92",Revenue,Adept Telecom PLC,77452,,
Chorley Borough Council,http://statistics.data.gov.uk/id/local-authority/30UE,Corporate Management,1008,CUST - Customer & Digital,Contributions Parish Councils,40144,Grants and Subscriptions,5031,Misc Contributions,17/05/2023,0180308,"1,816.00",Revenue,Adlington Town Council,17626,,
Chorley Borough Council,http://statistics.data.gov.uk/id/local-authority/30UE,Payments of Precepts to Parish,1018,CUST - Customer & Digital,Parish Council Tax,04500,Revenue Account Transfers,Balance,Parish Precept 23/24,17/05/2023,0180308,"19,084.00",Revenue,Adlington Town Council,17626,,
Chorley Borough Council,http://statistics.data.gov.uk/id/local-authority/30UE,Unapportionable Central OHeads,1009,CUST - Customer & Digital,Bank Charges,40151,Miscellaneous Expenses,5034,post office,10/05/2023,0180116,500.81,Revenue,Allpay Net Ltd,17242,,
Chorley Borough Council,http://statistics.data.gov.uk/id/local-authority/30UE,Unapportionable Central OHeads,1009,CUST - Customer & Digital,Bank Charges,40151,Miscellaneous Expenses,5034,post office,10/05/2023,0180118,632.71,Revenue,Allpay Net Ltd,17242,,
Chorley Borough Council,http://statistics.data.gov.uk/id/local-authority/30UE,Unapportionable Central OHeads,1009,GROW - Commercial & Property,General Repairs - Reactive,20004,Repairs Maintenance & Alts,5005,Primrose - Security Systems Reactive Repairs,24/05/2023,0179223,"2,718.15",Revenue,Amalgamated Ltd,78289,,
Chorley Borough Council,http://statistics.data.gov.uk/id/local-authority/30UE,Central Support Services,1009,CUST - Customer & Digital,Computer Software-Additional,40102,Communication and Computing,5028,Amazon AWS web services - 718576685325 Cloud charges April 2023,24/05/2023,0179604,"5,826.88",Revenue,Amazon Web Services EMEA SARL,80604,,
Chorley Borough Council,http://statistics.data.gov.uk/id/local-authority/30UE,Central Support Services,1009,CUST - Customer & Digital,Computer Software-Additional,40102,Communication and Computing,5028,Amazon AWS web services - 718576685325 Cloud chargesMay 2023,24/05/2023,0180252,"6,373.72",Revenue,Amazon Web Services EMEA SARL,80604,,
Chorley Borough Council,http://statistics.data.gov.uk/id/local-authority/30UE,Democratic Represent and  Mgnt,1007,GOVN - Policy & Governance,Arts Development Initiatives,40187,Miscellaneous Expenses,5034,Vis Exp - Coach House Mural Artist - 2 days at 332 per day,31/05/2023,0180978,664.00,Revenue,Amos Murals/Rob Amos Illustration,88807,,
Chorley Borough Council,http://statistics.data.gov.uk/id/local-authority/30UE,Payments of Precepts to Parish,1018,CUST - Customer & Digital,Parish Council Tax,04500,Revenue Account Transfers,Balance,Parish Precept 23/24,17/05/2023,0180310,"5,206.00",Revenue,Anderton Parish Council,18125,,
Chorley Borough Council,http://statistics.data.gov.uk/id/local-authority/30UE,Unapportionable Central OHeads,1009,GOVN - Policy & Governance,IT Software - Annual Licences,40101,Communication and Computing,5028,"As per quotation Q00127/APR23, , APT BACS iConnect Hosted Site Licence @ 2300, Annual charge for software Service & Support comm",17/05/2023,0180257,"2,425.00",Revenue,APT,17305,,
Chorley Borough Council,http://statistics.data.gov.uk/id/local-authority/30UE,Planning Policy,1092,GOVN - Policy & Governance,Car Leasing Payment,14100,Direct Employee Expenses,5001,VIN REDACTED: NAME REDACTED - 22 Apr 2023 to 21 Apr 2024,31/05/2023,0180779,"2,252.04",Revenue,Arnold Clark Finance Ltd,20685,,
Chorley Borough Council,http://statistics.data.gov.uk/id/local-authority/30UE,Tourism,1039,GOVN - Policy & Governance,Events Insurance,40252,Services,5027,CBC Event Cancellation Policy,17/05/2023,0180351,"8,932.00",Revenue,Arthur J. Gallagher,83531,,
Chorley Borough Council,http://statistics.data.gov.uk/id/local-authority/30UE,Tourism,1039,GOVN - Policy & Governance,Events Insurance,40252,Services,5027,CBC Event Cancellation - Addition of Santa Grotto/Express,17/05/2023,0180352,"1,232.00",Revenue,Arthur J. Gallagher,83531,,
Chorley Borough Council,http://statistics.data.gov.uk/id/local-authority/30UE,Corporate Management,1008,CUST - Customer & Digital,Contributions Parish Councils,40144,Grants and Subscriptions,5031,Misc Contributions,17/05/2023,0180311,"3,877.00",Revenue,Astley Village Parish Council,17642,,
Chorley Borough Council,http://statistics.data.gov.uk/id/local-authority/30UE,Payments of Precepts to Parish,1018,CUST - Customer & Digital,Parish Council Tax,04500,Revenue Account Transfers,Balance,Parish Precept 23/24,17/05/2023,0180311,"20,543.00",Revenue,Astley Village Parish Council,17642,,
Chorley Borough Council,http://statistics.data.gov.uk/id/local-authority/30UE,Service Management & Support,1009,CUST - Customer & Digital,Vehicles and Plant Maintenance,30045,Direct Transport Costs,5016,VIN REDACTED Power steering pump Power steering rack BULB Wiper blades Bottom Ball Joint Strip and Service rear brakes,24/05/2023,0180078,816.75,Revenue,Autofit,78140,,
Chorley Borough Council,http://statistics.data.gov.uk/id/local-authority/30UE,Control Accounts,Control,GOVN - Policy & Governance,General Balances,00100,Balance Sheet,Balance,Recovery in respect of VAT paid,24/05/2023,0180550,566.63,Revenue,Aviva Insurance UK Ltd,85454,,
Chorley Borough Council,http://statistics.data.gov.uk/id/local-authority/30UE,Unapportionable Central OHeads,1009,GOVN - Policy & Governance,Consultants` Fees,40077,Services,5027,Registration for VAT and notification on the option to tax. Xero Subscription and one hour training for staff member.,03/05/2023,0179961,"2,350.00",Revenue,Azets Holdings Ltd,86389,,
Chorley Borough Council,http://statistics.data.gov.uk/id/local-authority/30UE,Service Management & Support,1009,CUST - Customer & Digital,Hire Of Vehicles and Plant,30028,Contrct Hire & Operating Lease,5018,hire of a John Deere 1580 out front mower for 32weeks @ 200 per week. Starting 27th March 2023,10/05/2023,0179810,800.00,Revenue,Balmers Garden Machinery,17075,,
Chorley Borough Council,http://statistics.data.gov.uk/id/local-authority/30UE,Service Management & Support,1009,CUST - Customer & Digital,Hire Of Vehicles and Plant,30028,Contrct Hire & Operating Lease,5018,"As per submission to ITT invitation to Tender for the , contract hire with service and maintenance of , Grounds Maintenance Machi",10/05/2023,0179811,"1,242.40",Revenue,Balmers Garden Machinery,17075,,
Chorley Borough Council,http://statistics.data.gov.uk/id/local-authority/30UE,Service Management & Support,1009,CUST - Customer & Digital,Hire Of Vehicles and Plant,30028,Contrct Hire & Operating Lease,5018,hire of a John Deere 1580 out front mower for 32weeks @ 200 per week. Starting 27th March 2023,24/05/2023,0180760,800.00,Revenue,Balmers Garden Machinery,17075,,
Chorley Borough Council,http://statistics.data.gov.uk/id/local-authority/30UE,Control Accounts,Control,GOVN - Policy & Governance,General Balances,00100,Balance Sheet,Balance,28 mar 23,04/05/2023,0179824,"4,434.40",Revenue,Barclaycard Commercial,59848,,
Chorley Borough Council,http://statistics.data.gov.uk/id/local-authority/30UE,Control Accounts,Control,GOVN - Policy & Governance,General Balances,00100,Balance Sheet,Balance,28 sept 22,04/05/2023,0179825,"12,312.18",Revenue,Barclaycard Commercial,59848,,
Chorley Borough Council,http://statistics.data.gov.uk/id/local-authority/30UE,Control Accounts,Control,GOVN - Policy & Governance,General Balances,00100,Balance Sheet,Balance,28 oct 22,04/05/2023,0179826,"13,717.90",Revenue,Barclaycard Commercial,59848,,
Chorley Borough Council,http://statistics.data.gov.uk/id/local-authority/30UE,Control Accounts,Control,GOVN - Policy & Governance,General Balances,00100,Balance Sheet,Balance,28 nov 22,04/05/2023,0179827,"6,903.53",Revenue,Barclaycard Commercial,59848,,
Chorley Borough Council,http://statistics.data.gov.uk/id/local-authority/30UE,Control Accounts,Control,GOVN - Policy & Governance,General Balances,00100,Balance Sheet,Balance,28 dec 22,04/05/2023,0179828,"6,130.97",Revenue,Barclaycard Commercial,59848,,
Chorley Borough Council,http://statistics.data.gov.uk/id/local-authority/30UE,Control Accounts,Control,GOVN - Policy & Governance,General Balances,00100,Balance Sheet,Balance,28 jan 23,04/05/2023,0179829,"9,391.16",Revenue,Barclaycard Commercial,59848,,
Chorley Borough Council,http://statistics.data.gov.uk/id/local-authority/30UE,Control Accounts,Control,GOVN - Policy & Governance,General Balances,00100,Balance Sheet,Balance,28 feb 23,04/05/2023,0179831,"9,369.67",Revenue,Barclaycard Commercial,59848,,
Chorley Borough Council,http://statistics.data.gov.uk/id/local-authority/30UE,Control Accounts,Control,GOVN - Policy & Governance,General Balances,00100,Balance Sheet,Balance,28 apr 23,19/05/2023,0180337,"3,211.10",Revenue,Barclaycard Commercial,59848,,
Chorley Borough Council,http://statistics.data.gov.uk/id/local-authority/30UE,Corporate Management,1008,GOVN - Policy & Governance,Bank Charges,40151,Miscellaneous Expenses,5034,,04/05/2023,0179524,"2,251.72",Revenue,Barclaycard Merchant Services,61601,,
Chorley Borough Council,http://statistics.data.gov.uk/id/local-authority/30UE,Corporate Management,1008,GOVN - Policy & Governance,Bank Charges,40151,Miscellaneous Expenses,5034,,04/05/2023,0179526,"3,427.62",Revenue,Barclaycard Merchant Services,61601,,
Chorley Borough Council,http://statistics.data.gov.uk/id/local-authority/30UE,Corporate Management,1008,GOVN - Policy & Governance,Bank Charges,40151,Miscellaneous Expenses,5034,,19/05/2023,0180443,"2,079.33",Revenue,Barclaycard Merchant Services,61601,,
Chorley Borough Council,http://statistics.data.gov.uk/id/local-authority/30UE,Corporate Management,1008,GOVN - Policy & Governance,Bank Charges,40151,Miscellaneous Expenses,5034,,19/05/2023,0180445,"3,827.40",Revenue,Barclaycard Merchant Services,61601,,
Chorley Borough Council,http://statistics.data.gov.uk/id/local-authority/30UE,Tourism,1039,GOVN - Policy & Governance,Publicity - Advertising,40157,Miscellaneous Expenses,5034,Radio Campaign for Chorley Flower Show (CFS) - 27th March - 2nd April and 26th June - 2nd July,17/05/2023,0179285,"1,415.30",Revenue,Bauer Active Ltd,50574,,
Chorley Borough Council,http://statistics.data.gov.uk/id/local-authority/30UE,Economic Development,1096,GOVN - Policy & Governance,Publicity - Advertising,40157,Miscellaneous Expenses,5034,6 week Greatest Hits Radio Campaign to promote Chorley Markets,17/05/2023,0180027,"1,630.64",Revenue,Bauer Active Ltd,50574,,
Chorley Borough Council,http://statistics.data.gov.uk/id/local-authority/30UE,Development Control,1091,PLAN - Planning & Development,Professional Fees,40063,Services,5027,"Growth Lancashire, Job: Provision of heritage advice in respect of planning applications, Time period: 1 April 2022  31 March 20",03/05/2023,0179960,"2,582.30",Revenue,Blackburn with Darwen Borough Council,21000,,
Chorley Borough Council,http://statistics.data.gov.uk/id/local-authority/30UE,Elections,1012,GOVN - Policy & Governance,Rent/Hire Of Premises,20017,Premises Rents,5007,Room hire for polling station 4 May 2023,17/05/2023,0180344,500.00,Revenue,Blind Tiger Inns Ltd,85374,,
Chorley Borough Council,http://statistics.data.gov.uk/id/local-authority/30UE,Tourism,1039,GOVN - Policy & Governance,Tools & Equipment - Hire,40004,"Equipment, Furniture & Materia",5023,"11 sq m display screen, technician and all associated equipment., , Included with in the price is set up of a TV aerial, 2 x 1100",17/05/2023,0180250,"1,850.00",Revenue,Blue Sky Event Services Limited,88415,,
Chorley Borough Council,http://statistics.data.gov.uk/id/local-authority/30UE,Payments of Precepts to Parish,1018,CUST - Customer & Digital,Parish Council Tax,04500,Revenue Account Transfers,Balance,Precepts,17/05/2023,0180314,"16,536.00",Revenue,Bretherton Parish Council,17108,,
Chorley Borough Council,http://statistics.data.gov.uk/id/local-authority/30UE,Payments of Precepts to Parish,1018,CUST - Customer & Digital,Parish Council Tax,04500,Revenue Account Transfers,Balance,Parish Precept 23/24,17/05/2023,0180313,"7,227.00",Revenue,Brindle Parish Council,17023,,
Chorley Borough Council,http://statistics.data.gov.uk/id/local-authority/30UE,Economic Development,1096,GROW - Commercial & Property,Electricity,20013,Energy Costs,5006,ADDRESS REDACTED,24/05/2023,0180642,"3,382.38",Revenue,British Gas Business,22242,,
Chorley Borough Council,http://statistics.data.gov.uk/id/local-authority/30UE,Central Support Services,1009,CUST - Customer & Digital,Telephones - Rentals,40083,Communication and Computing,5028,Standard rate VAT,31/05/2023,0181006,"6,702.10",Revenue,British Telecommunications Plc,17131,,
Chorley Borough Council,http://statistics.data.gov.uk/id/local-authority/30UE,Business Support,1095,GROW - Commercial & Property,General Repairs - Reactive,20004,Repairs Maintenance & Alts,5005,MW Market Walk - Reactive Repairs,31/05/2023,0179287,963.37,Revenue,Bryan Lee Building Contractors Ltd,78160,,
Chorley Borough Council,http://statistics.data.gov.uk/id/local-authority/30UE,Unapportionable Central OHeads,1009,GROW - Commercial & Property,General Repairs - Reactive,20004,Repairs Maintenance & Alts,5005,Primrose - Reactive Repairs,31/05/2023,0179442,"1,054.45",Revenue,Bryan Lee Building Contractors Ltd,78160,,
Chorley Borough Council,http://statistics.data.gov.uk/id/local-authority/30UE,Unapportionable Central OHeads,1009,GROW - Commercial & Property,General Repairs - Reactive,20004,Repairs Maintenance & Alts,5005,Town Hall - Reactive Repairs,31/05/2023,0179880,533.69,Revenue,Bryan Lee Building Contractors Ltd,78160,,
Chorley Borough Council,http://statistics.data.gov.uk/id/local-authority/30UE,Unapportionable Central OHeads,1009,GROW - Commercial & Property,General Repairs - Reactive,20004,Repairs Maintenance & Alts,5005,community centres - Reactive Repairs,31/05/2023,0179882,903.44,Revenue,Bryan Lee Building Contractors Ltd,78160,,
Chorley Borough Council,http://statistics.data.gov.uk/id/local-authority/30UE,Unapportionable Central OHeads,1009,GROW - Commercial & Property,General Repairs - Reactive,20004,Repairs Maintenance & Alts,5005,Astley Hall - Reactive Repairs,31/05/2023,0179934,"1,066.30",Revenue,Bryan Lee Building Contractors Ltd,78160,,
Chorley Borough Council,http://statistics.data.gov.uk/id/local-authority/30UE,Unapportionable Central OHeads,1009,GROW - Commercial & Property,General Repairs - Reactive,20004,Repairs Maintenance & Alts,5005,Astley Hall - Reactive Repairs,31/05/2023,0179935,"2,958.23",Revenue,Bryan Lee Building Contractors Ltd,78160,,
Chorley Borough Council,http://statistics.data.gov.uk/id/local-authority/30UE,Unapportionable Central OHeads,1009,GROW - Commercial & Property,General Repairs - Reactive,20004,Repairs Maintenance & Alts,5005,Astley Hall - Reactive Repairs,31/05/2023,0179936,"1,296.40",Revenue,Bryan Lee Building Contractors Ltd,78160,,
Chorley Borough Council,http://statistics.data.gov.uk/id/local-authority/30UE,Business Support,1095,GROW - Commercial & Property,General Repairs - Reactive,20004,Repairs Maintenance & Alts,5005,Primrose Gardens Reactive General Building Repair Works,24/05/2023,0180362,"1,532.82",Revenue,Bryan Lee Building Contractors Ltd,78160,,
Chorley Borough Council,http://statistics.data.gov.uk/id/local-authority/30UE,Unapportionable Central OHeads,1009,GROW - Commercial & Property,General Repairs - Reactive,20004,Repairs Maintenance & Alts,5005,Cotswold House Reactive General Building Repair Works,24/05/2023,0180368,726.23,Revenue,Bryan Lee Building Contractors Ltd,78160,,
Chorley Borough Council,http://statistics.data.gov.uk/id/local-authority/30UE,Unapportionable Central OHeads,1009,GROW - Commercial & Property,General Repairs - Reactive,20004,Repairs Maintenance & Alts,5005,CBC Commercial Properties Reactive General Building Repair Works,24/05/2023,0180372,811.07,Revenue,Bryan Lee Building Contractors Ltd,78160,,
Chorley Borough Council,http://statistics.data.gov.uk/id/local-authority/30UE,Unapportionable Central OHeads,1009,GROW - Commercial & Property,General Repairs - Reactive,20004,Repairs Maintenance & Alts,5005,Town Hall Reactive General Building Repair Works,24/05/2023,0180373,"1,232.97",Revenue,Bryan Lee Building Contractors Ltd,78160,,
Chorley Borough Council,http://statistics.data.gov.uk/id/local-authority/30UE,Capital,Capital,GROW - Commercial & Property,Other Contractor,03012,Capital Expenditure,Capital,"Strawberry Fields, , Ground floor sub division works 117,382, First floor sub division works 143,209",31/05/2023,0180851,"53,651.00",Capital,Bryan Lee Building Contractors Ltd,78160,,
Chorley Borough Council,http://statistics.data.gov.uk/id/local-authority/30UE,Unapportionable Central OHeads,1009,CUST - Customer & Digital,Agency Staff,13000,Direct Employee Expenses,5001,Benefit processing work 23/24,10/05/2023,0180199,"2,229.50",Revenue,Business Smart Solutions Ltd,88577,,
Chorley Borough Council,http://statistics.data.gov.uk/id/local-authority/30UE,Central Support Services,1009,CUST - Customer & Digital,Computer Software-Maintenance,40107,Communication and Computing,5028,Chorley: Business Rates Software Changes � England TR-SSB 2023,03/05/2023,0179913,"1,575.00",Revenue,Capita Business Services Ltd,17151,,
Chorley Borough Council,http://statistics.data.gov.uk/id/local-authority/30UE,Tourism,1039,GOVN - Policy & Governance,External Contractor,40198,Miscellaneous Expenses,5034,Lighting up Rivington Pike Saturday 6 and Sunday 7 May for the Kings Coronation,17/05/2023,0178325,780.00,Revenue,CDS Events,81168,,
Chorley Borough Council,http://statistics.data.gov.uk/id/local-authority/30UE,Payments of Precepts to Parish,1018,CUST - Customer & Digital,Parish Council Tax,04500,Revenue Account Transfers,Balance,Parish Precept 23/24,17/05/2023,0180315,"33,710.00",Revenue,Charnock Richard Parish Cncl,16206,,
Chorley Borough Council,http://statistics.data.gov.uk/id/local-authority/30UE,Other Short Term Creditors,,GOVN - Policy & Governance,General Balances,00100,Balance Sheet,Balance,income tansfer,31/05/2023,0180799,"15,032.25",Revenue,Chorley Leisure Ltd,83376,,
Chorley Borough Council,http://statistics.data.gov.uk/id/local-authority/30UE,Central Support Services,1009,EARL - Communities,Children's Activities,40188,Miscellaneous Expenses,5034,PASTA Programme Delivery - February 2023 - March 2024,03/05/2023,0179736,"9,307.00",Revenue,Chorley School Sport Partnership,56115,,
Chorley Borough Council,http://statistics.data.gov.uk/id/local-authority/30UE,Central Support Services,1009,EARL - Communities,Misc Expenses,40200,Miscellaneous Expenses,5034,large comm grant,24/05/2023,0180696,"8,000.00",Revenue,Chorley Womens Centre,17036,,
Chorley Borough Council,http://statistics.data.gov.uk/id/local-authority/30UE,Central Support Services,1009,EARL - Communities,Children's Activities,40188,Miscellaneous Expenses,5034,HAF Programme - Remaining 40% balance for Easter delivery,24/05/2023,0180585,"19,192.00",Revenue,Chorley Youth Zone,77339,,
Chorley Borough Council,http://statistics.data.gov.uk/id/local-authority/30UE,Homelessness,1075,EARL - Communities,Computer Software-Purchase,40100,Communication and Computing,5028,"Changes to Civica/Select Move system ahead of the policy change. Charge for 3 partners = Chorley Council, Jigsaw Homes North and ",10/05/2023,0179237,"6,639.30",Revenue,Civica UK Limited,17463,,
Chorley Borough Council,http://statistics.data.gov.uk/id/local-authority/30UE,Unapportionable Central OHeads,1009,GOVN - Policy & Governance,IT Software - Annual Licences,40101,Communication and Computing,5028,"For the period 1st April 2023 to 31st March 2024, , - Civica Annual License Fee and Annual Support & Maintenance @ 105,100, - An",03/05/2023,0179904,"107,600.00",Revenue,Civica UK Limited,17463,,
Chorley Borough Council,http://statistics.data.gov.uk/id/local-authority/30UE,Corporate Management,1008,CUST - Customer & Digital,Contributions Parish Councils,40144,Grants and Subscriptions,5031,Misc Contributions,17/05/2023,0180316,"11,458.00",Revenue,Clayton-Le-Woods Parish Coun.,17024,,
Chorley Borough Council,http://statistics.data.gov.uk/id/local-authority/30UE,Payments of Precepts to Parish,1018,CUST - Customer & Digital,Parish Council Tax,04500,Revenue Account Transfers,Balance,Parish Precept 23/24,17/05/2023,0180316,"154,752.00",Revenue,Clayton-Le-Woods Parish Coun.,17024,,
Chorley Borough Council,http://statistics.data.gov.uk/id/local-authority/30UE,Central Support Services,1009,CUST - Customer & Digital,Items For Resale,40027,"Equipment, Furniture & Materia",5023,0300 Grey 240L wheeled bin with RFID chip and Chorley logo. Quantity 540 Unit price 20.90,24/05/2023,0180590,"11,244.20",Revenue,Contenur Uk Ltd,82451,,
Chorley Borough Council,http://statistics.data.gov.uk/id/local-authority/30UE,Corporate Management,1008,CUST - Customer & Digital,Contributions Parish Councils,40144,Grants and Subscriptions,5031,Misc Contributions,17/05/2023,0180312,"10,576.00",Revenue,Coppull Parish Council,17025,,
Chorley Borough Council,http://statistics.data.gov.uk/id/local-authority/30UE,Payments of Precepts to Parish,1018,CUST - Customer & Digital,Parish Council Tax,04500,Revenue Account Transfers,Balance,Parish Precept 23/24,17/05/2023,0180312,"111,324.00",Revenue,Coppull Parish Council,17025,,
Chorley Borough Council,http://statistics.data.gov.uk/id/local-authority/30UE,Democratic Represent and  Mgnt,1007,GROW - Commercial & Property,Gas,20014,Energy Costs,5006,eaves green comm ctr,24/05/2023,0180449,840.81,Revenue,Corona Energy Retail 2 Ltd,67249,,
Chorley Borough Council,http://statistics.data.gov.uk/id/local-authority/30UE,Democratic Represent and  Mgnt,1007,GROW - Commercial & Property,Gas,20014,Energy Costs,5006,Astley hall,24/05/2023,0180450,"5,680.02",Revenue,Corona Energy Retail 2 Ltd,67249,,
Chorley Borough Council,http://statistics.data.gov.uk/id/local-authority/30UE,Recreation & Sport,1037,GROW - Commercial & Property,Gas,20014,Energy Costs,5006,Clayton brook village ha;;,24/05/2023,0180451,868.13,Revenue,Corona Energy Retail 2 Ltd,67249,,
Chorley Borough Council,http://statistics.data.gov.uk/id/local-authority/30UE,Central Support Services,1009,GROW - Commercial & Property,Gas,20014,Energy Costs,5006,Civic offices,24/05/2023,0180452,"5,475.71",Revenue,Corona Energy Retail 2 Ltd,67249,,
Chorley Borough Council,http://statistics.data.gov.uk/id/local-authority/30UE,Democratic Represent and  Mgnt,1007,GROW - Commercial & Property,Gas,20014,Energy Costs,5006,Astley farm,24/05/2023,0180453,705.22,Revenue,Corona Energy Retail 2 Ltd,67249,,
Chorley Borough Council,http://statistics.data.gov.uk/id/local-authority/30UE,Homelessness,1075,GROW - Commercial & Property,Gas,20014,Energy Costs,5006,Cotswold house,24/05/2023,0180455,"5,300.75",Revenue,Corona Energy Retail 2 Ltd,67249,,
Chorley Borough Council,http://statistics.data.gov.uk/id/local-authority/30UE,Unapportionable Central OHeads,1009,GROW - Commercial & Property,Gas,20014,Energy Costs,5006,Town Hall,24/05/2023,0180516,"5,347.74",Revenue,Corona Energy Retail 2 Ltd,67249,,
Chorley Borough Council,http://statistics.data.gov.uk/id/local-authority/30UE,Unapportionable Central OHeads,1009,GROW - Commercial & Property,Gas,20014,Energy Costs,5006,Bengal Street,24/05/2023,0180517,738.26,Revenue,Corona Energy Retail 2 Ltd,67249,,
Chorley Borough Council,http://statistics.data.gov.uk/id/local-authority/30UE,Democratic Represent and  Mgnt,1007,GROW - Commercial & Property,Gas,20014,Energy Costs,5006,Astley village community centre,24/05/2023,0180518,"1,398.03",Revenue,Corona Energy Retail 2 Ltd,67249,,
Chorley Borough Council,http://statistics.data.gov.uk/id/local-authority/30UE,Democratic Represent and  Mgnt,1007,GROW - Commercial & Property,Gas,20014,Energy Costs,5006,Astley Park Coach House,24/05/2023,0180519,"5,414.87",Revenue,Corona Energy Retail 2 Ltd,67249,,
Chorley Borough Council,http://statistics.data.gov.uk/id/local-authority/30UE,Central Support Services,1009,EARL - Communities,Veterinary Fees Etc,40074,Services,5027,Flat Iron Car Park - Re invoiced,03/05/2023,0179919,"1,925.00",Revenue,COURT ENFORCEMENT SPECIALISTS LTD,77924,,
Chorley Borough Council,http://statistics.data.gov.uk/id/local-authority/30UE,Corporate Management,1008,CUST - Customer & Digital,Contributions Parish Councils,40144,Grants and Subscriptions,5031,Misc Contributions,17/05/2023,0180307,"1,440.00",Revenue,Croston Parish Council,17026,,
Chorley Borough Council,http://statistics.data.gov.uk/id/local-authority/30UE,Payments of Precepts to Parish,1018,CUST - Customer & Digital,Parish Council Tax,04500,Revenue Account Transfers,Balance,Parish Precept 23/24,17/05/2023,0180307,"25,810.00",Revenue,Croston Parish Council,17026,,
Chorley Borough Council,http://statistics.data.gov.uk/id/local-authority/30UE,Tourism,1039,GOVN - Policy & Governance,Tools & Equipment - Hire,40004,"Equipment, Furniture & Materia",5023,Track hire for the Chorley Flower Show from Monday 24 July till Monday 31 July 2023 at Astley Park Chorley.100m x 3m temporary ac,24/05/2023,0180638,"2,184.00",Revenue,Davis Trackhire Ltd,85470,,
Chorley Borough Council,http://statistics.data.gov.uk/id/local-authority/30UE,Unapportionable Central OHeads,1009,GOVN - Policy & Governance,Furniture - Purchase,40012,"Equipment, Furniture & Materia",5023,"12 x VIN REDACTED - Orthopaedica chair with fold down height adjustable multi functional arm pads and pump up lumber in black, 265.81",31/05/2023,0180784,"3,189.72",Revenue,Diamond Business Interiors Ltd,53722,,
Chorley Borough Council,http://statistics.data.gov.uk/id/local-authority/30UE,Capital,Capital,GROW - Commercial & Property,Other Capital Related Fees,03024,Capital Expenditure,Capital,"The design, supply and installation of a bespoke wallcovering mural at Tatton Gardens.",17/05/2023,0180285,"2,373.50",Capital,Dynasty Wall Coverings Ltd,88436,,
Chorley Borough Council,http://statistics.data.gov.uk/id/local-authority/30UE,Corporate Management,1008,CUST - Customer & Digital,Contributions Parish Councils,40144,Grants and Subscriptions,5031,Misc Contributions,17/05/2023,0180306,"1,636.00",Revenue,Eccleston Parish Council,17027,,
Chorley Borough Council,http://statistics.data.gov.uk/id/local-authority/30UE,Payments of Precepts to Parish,1018,CUST - Customer & Digital,Parish Council Tax,04500,Revenue Account Transfers,Balance,Parish Precept 23/24,17/05/2023,0180306,"47,990.00",Revenue,Eccleston Parish Council,17027,,
Chorley Borough Council,http://statistics.data.gov.uk/id/local-authority/30UE,Central Support Services,1009,CUST - Customer & Digital,Mobile Voice and Data,40086,Communication and Computing,5028,03 May 2023,31/05/2023,0180810,"9,235.05",Revenue,EE - Orange,16486,,
Chorley Borough Council,http://statistics.data.gov.uk/id/local-authority/30UE,Unapportionable Central OHeads,1009,GROW - Commercial & Property,General Repairs - Reactive,20004,Repairs Maintenance & Alts,5005,Housing - General Building Reactive Repairs,03/05/2023,0179200,770.00,Revenue,EFT Construction,78195,,
Chorley Borough Council,http://statistics.data.gov.uk/id/local-authority/30UE,Unapportionable Central OHeads,1009,GROW - Commercial & Property,General Repairs - Reactive,20004,Repairs Maintenance & Alts,5005,Primrose - General Building Reactive Repairs,10/05/2023,0179331,"4,164.99",Revenue,EFT Construction,78195,,
Chorley Borough Council,http://statistics.data.gov.uk/id/local-authority/30UE,Unapportionable Central OHeads,1009,GROW - Commercial & Property,General Repairs - Reactive,20004,Repairs Maintenance & Alts,5005,Cotswold - General Building Reactive Repairs,10/05/2023,0179332,"1,937.65",Revenue,EFT Construction,78195,,
Chorley Borough Council,http://statistics.data.gov.uk/id/local-authority/30UE,Business Support,1095,GROW - Commercial & Property,General Repairs - Reactive,20004,Repairs Maintenance & Alts,5005,MW Market Walk - General Building Reactive Repairs,10/05/2023,0179333,"4,432.10",Revenue,EFT Construction,78195,,
Chorley Borough Council,http://statistics.data.gov.uk/id/local-authority/30UE,Unapportionable Central OHeads,1009,GROW - Commercial & Property,General Repairs - Reactive,20004,Repairs Maintenance & Alts,5005,Primrose - General Building Reactive Repairs,31/05/2023,0179864,"3,079.44",Revenue,EFT Construction,78195,,
Chorley Borough Council,http://statistics.data.gov.uk/id/local-authority/30UE,Capital,Capital,GROW - Commercial & Property,Other Capital Related Fees,03024,Capital Expenditure,Capital,"Market Refurb works to unit 15/16 (summer 2022), , Quoted works plus variations as agree with NAME REDACTED",03/05/2023,0179869,"5,546.40",Capital,EFT Construction,78195,,
Chorley Borough Council,http://statistics.data.gov.uk/id/local-authority/30UE,Unapportionable Central OHeads,1009,GROW - Commercial & Property,General Repairs - Reactive,20004,Repairs Maintenance & Alts,5005,Cotswold - General Building Reactive Repairs,10/05/2023,0179887,"1,727.75",Revenue,EFT Construction,78195,,
Chorley Borough Council,http://statistics.data.gov.uk/id/local-authority/30UE,Unapportionable Central OHeads,1009,GROW - Commercial & Property,General Repairs - Reactive,20004,Repairs Maintenance & Alts,5005,Housing - General Building Reactive Repairs,03/05/2023,0179888,"6,522.37",Revenue,EFT Construction,78195,,
Chorley Borough Council,http://statistics.data.gov.uk/id/local-authority/30UE,Capital,Capital,PLAN - Planning & Development,Main Contractor,03007,Capital Expenditure,Capital,Design and Construction of Play Area at West Way Sports Hub in accordance with submitted tender documents.,03/05/2023,0179836,"39,771.73",Capital,eibeplay LTD,39513,,
Chorley Borough Council,http://statistics.data.gov.uk/id/local-authority/30UE,Unapportionable Central OHeads,1009,GROW - Commercial & Property,General Repairs - Reactive,20004,Repairs Maintenance & Alts,5005,"Quotation Ref No: ERQ039182/3, , MS01 Repairs Following Breaking Out of Fixings - Weekend Works",03/05/2023,0179868,"1,494.00",Revenue,Eurosafe Solutions Limited,66302,,
Chorley Borough Council,http://statistics.data.gov.uk/id/local-authority/30UE,Capital,Capital,GROW - Commercial & Property,Main Contractor,03007,Capital Expenditure,Capital,"Town Hall, , Quotation Ref No: ERQ042045/1, Re: 2022 Flagpole Installation - Chorley Town Hall, , Installation of 2no UHD Interna",03/05/2023,0179872,"18,925.00",Capital,Eurosafe Solutions Limited,66302,,
Chorley Borough Council,http://statistics.data.gov.uk/id/local-authority/30UE,Corporate Management,1008,CUST - Customer & Digital,Contributions Parish Councils,40144,Grants and Subscriptions,5031,Misc Contributions,17/05/2023,0180305,"1,709.00",Revenue,Euxton Parish Council,16838,,
Chorley Borough Council,http://statistics.data.gov.uk/id/local-authority/30UE,Payments of Precepts to Parish,1018,CUST - Customer & Digital,Parish Council Tax,04500,Revenue Account Transfers,Balance,Parish Precept 23/24,17/05/2023,0180305,"178,200.00",Revenue,Euxton Parish Council,16838,,
Chorley Borough Council,http://statistics.data.gov.uk/id/local-authority/30UE,Tourism,1039,GOVN - Policy & Governance,Professional Fees,40063,Services,5027,Music for Chorley 10k - Sunday 7 May 2023 10am - 4pm Covered Market area,17/05/2023,0180366,950.00,Revenue,Event Chorley,85464,,
Chorley Borough Council,http://statistics.data.gov.uk/id/local-authority/30UE,Service Management & Support,1009,CUST - Customer & Digital,Hire Of Vehicles and Plant,30028,Contrct Hire & Operating Lease,5018,1 x triple rental per week at 375 1x front deck rental per week at 295 Total of 30 weeks rental,10/05/2023,0179966,"2,680.00",Revenue,F R Sharrock Ltd,18091,,
Chorley Borough Council,http://statistics.data.gov.uk/id/local-authority/30UE,Central Support Services,1009,CUST - Customer & Digital,Unitary Payment(S),50009,Private Contractors,5042,Provision of waste and recycling collection services to Chorley Council for 2023/24,17/05/2023,0180200,"199,465.75",Revenue,FCC Environment Services (UK) Limited,77903,,
Chorley Borough Council,http://statistics.data.gov.uk/id/local-authority/30UE,Tourism,1039,GOVN - Policy & Governance,Supplies-Grounds Maintenance,40025,"Equipment, Furniture & Materia",5023,SEE CREDIT 73016,31/05/2023,0180979,"44,176.87",Revenue,Field and Lawn Ltd,74977,,
Chorley Borough Council,http://statistics.data.gov.uk/id/local-authority/30UE,Tourism,1039,GOVN - Policy & Governance,Supplies-Grounds Maintenance,40025,"Equipment, Furniture & Materia",5023,see credit 73015,31/05/2023,0180980,"14,725.63",Revenue,Field and Lawn Ltd,74977,,
Chorley Borough Council,http://statistics.data.gov.uk/id/local-authority/30UE,Tourism,1039,GOVN - Policy & Governance,Supplies-Grounds Maintenance,40025,"Equipment, Furniture & Materia",5023,"Marquees for Chorley Flower Show, 28-30 July 2023 , , 1 Amateur and Societies: Clearspan frame structure 20m x 140m 31,280.00, W",31/05/2023,0180999,"14,725.63",Revenue,Field and Lawn Ltd,74977,,
Chorley Borough Council,http://statistics.data.gov.uk/id/local-authority/30UE,Central Support Services,1009,GOVN - Policy & Governance,Exhibitions & Special Events,40158,Miscellaneous Expenses,5034,4 Human Rescources Business Workhops to be held at Strawberry Fields. Each workshop is 350.00.,10/05/2023,0180084,700.00,Revenue,Fresh Perspective Resourcing Limited,87230,,
Chorley Borough Council,http://statistics.data.gov.uk/id/local-authority/30UE,Homelessness,1075,GROW - Commercial & Property,Furniture - Purchase,40012,"Equipment, Furniture & Materia",5023,3x Chester Gents wardrobe @ 215.25 each,17/05/2023,0180359,645.75,Revenue,Furniture Resource Centre Ltd,22085,,
Chorley Borough Council,http://statistics.data.gov.uk/id/local-authority/30UE,Culture & Heritage,1036,GOVN - Policy & Governance,Souvenirs,40033,"Equipment, Furniture & Materia",5023,"BRITISH FOSSILS					, ITEM CODE	DESCRIPTION	AMOUNT PER PK	ORDER AMOUNT	PACK PRICE	Total, PK275 	KEYRING PACK	40 (1.60 EACH)	3	6",31/05/2023,0180348,"2,353.60",Revenue,Giftstones Ltd T/A British Fossils,80856,,
Chorley Borough Council,http://statistics.data.gov.uk/id/local-authority/30UE,Service Management & Support,1009,CUST - Customer & Digital,Hire Of Vehicles and Plant,30028,Contrct Hire & Operating Lease,5018,"Extension of the sweepers, 12 month Contract - Start date 02/09/22, , NAME REDACTED VIN REDACTED � contract hire only - 1,290.17 ",10/05/2023,0179873,"8,332.30",Revenue,Go Plant Fleet Services Ltd,80857,,
Chorley Borough Council,http://statistics.data.gov.uk/id/local-authority/30UE,Service Management & Support,1009,CUST - Customer & Digital,Supplies-Grounds Maintenance,40025,"Equipment, Furniture & Materia",5023,"�	10 x poly mixed wire brushes for Schmidt Swingo�	6 x Metal channel brushes for NAME REDACTED VT652 (the larger brushes as normal)�	2",24/05/2023,0180041,"1,505.64",Revenue,Go Plant Fleet Services Ltd,80857,,
Chorley Borough Council,http://statistics.data.gov.uk/id/local-authority/30UE,Central Support Services,1009,CUST - Customer & Digital,Printing,40043,"Printing, Stationery & General",5026,Garden Waste Subscription payments 2023/24,17/05/2023,0180318,765.93,Revenue,GoCardless,77457,,
Chorley Borough Council,http://statistics.data.gov.uk/id/local-authority/30UE,Capital,Capital,GROW - Commercial & Property,Consultants Fees,03025,Capital Expenditure,Capital,Strawberry Meadows (Alker) Client Side Consultancy Support (5 days),17/05/2023,0179804,"2,500.00",Capital,Gosling Consulting Limited,78380,,
Chorley Borough Council,http://statistics.data.gov.uk/id/local-authority/30UE,Capital,Capital,GROW - Commercial & Property,Consultants Fees,03025,Capital Expenditure,Capital,Tatton Gardens - Client Side Consultancy Services,17/05/2023,0179805,"3,000.00",Capital,Gosling Consulting Limited,78380,,
Chorley Borough Council,http://statistics.data.gov.uk/id/local-authority/30UE,Central Support Services,1009,PLAN - Planning & Development,Vandalism Repairs,20005,Repairs Maintenance & Alts,5005,Graffiti removal contract April 2023 ongoing,03/05/2023,0179963,670.00,Revenue,Graffiti Away Ltd,78340,,
Chorley Borough Council,http://statistics.data.gov.uk/id/local-authority/30UE,Capital,Capital,GROW - Commercial & Property,Other Capital Related Fees,03024,Capital Expenditure,Capital,"4 x Outdoor Furniture Square Dining Table Set with Chairs. Quoted at 1,100 per set plus VAT.",10/05/2023,0179239,"4,400.00",Capital,Grafton Projects Limited,76545,,
Chorley Borough Council,http://statistics.data.gov.uk/id/local-authority/30UE,Business Support,1095,GROW - Commercial & Property,Building Services,20030,Fixtures and Fittings,5010,"To dismantle/relocate and reassemble furniture, per your emailed quote 02.05.23",17/05/2023,0180357,675.00,Revenue,Gresham Office Furniture Ltd,78114,,
Chorley Borough Council,http://statistics.data.gov.uk/id/local-authority/30UE,Business Support,1095,GROW - Commercial & Property,Misc Expenses,40200,Miscellaneous Expenses,5034,MOVING FURNITURE ON GROUND FLOOR,24/05/2023,0180619,675.00,Revenue,Gresham Office Furniture Ltd,78114,,
Chorley Borough Council,http://statistics.data.gov.uk/id/local-authority/30UE,Service Management & Support,1009,CUST - Customer & Digital,Supplies-Grounds Maintenance,40025,"Equipment, Furniture & Materia",5023,"PBWH-200-500-855-975-PTD, , Chorley Borough Printed Sacks, 500 x 855 x 975mm, As Previous, , 60k - 114.50 Per 1000",24/05/2023,0180573,"6,927.25",Revenue,Harrisons Packaging Ltd,17555,,
Chorley Borough Council,http://statistics.data.gov.uk/id/local-authority/30UE,Economic Development,1096,GROW - Commercial & Property,Agency Staff,13000,Direct Employee Expenses,5001,"NAME REDACTED - 24 week contract @ 69ph 36.5 hours per week= 60,444- Service Lead 50% Chorley Borough Council - 30,222",10/05/2023,0176834,"4,002.00",Revenue,Hays Senior Finance,20078,,
Chorley Borough Council,http://statistics.data.gov.uk/id/local-authority/30UE,Economic Development,1096,GROW - Commercial & Property,Agency Staff,13000,Direct Employee Expenses,5001,"Consultancy Fees - NAME REDACTED, Senior Project Manager",03/05/2023,0176837,800.00,Revenue,Hays Senior Finance,20078,,
Chorley Borough Council,http://statistics.data.gov.uk/id/local-authority/30UE,Economic Development,1096,GROW - Commercial & Property,Agency Staff,13000,Direct Employee Expenses,5001,"Consultancy Fees - NAME REDACTED, Senior Project Manager",03/05/2023,0176837,800.00,Revenue,Hays Senior Finance,20078,,
Chorley Borough Council,http://statistics.data.gov.uk/id/local-authority/30UE,Central Support Services,1009,GROW - Commercial & Property,Agency Staff,13000,Direct Employee Expenses,5001,Fees for NAME REDACTED - estates surveyor,03/05/2023,0179242,714.00,Revenue,Hays Senior Finance,20078,,
Chorley Borough Council,http://statistics.data.gov.uk/id/local-authority/30UE,Payments of Precepts to Parish,1018,CUST - Customer & Digital,Parish Council Tax,04500,Revenue Account Transfers,Balance,Parish Precept 23/24,17/05/2023,0180299,"8,833.00",Revenue,Heapey Parish Council,17028,,
Chorley Borough Council,http://statistics.data.gov.uk/id/local-authority/30UE,Payments of Precepts to Parish,1018,CUST - Customer & Digital,Parish Council Tax,04500,Revenue Account Transfers,Balance,Precepts,17/05/2023,0180298,"8,165.00",Revenue,Heath Charnock Parish Council,16208,,
Chorley Borough Council,http://statistics.data.gov.uk/id/local-authority/30UE,Community Development,1097,EARL - Communities,Core Funding Grants,40133,Grants and Subscriptions,5031,�Delivery of Homelessness Service  2023/24 (third year)�,31/05/2023,0180831,"16,000.00",Revenue,Help The Homeless (Chorley),16716,,
Chorley Borough Council,http://statistics.data.gov.uk/id/local-authority/30UE,Corporate Management,1008,CUST - Customer & Digital,Contributions Parish Councils,40144,Grants and Subscriptions,5031,Misc Contributions,17/05/2023,0180302,544.00,Revenue,Heskin Parish Council,17029,,
Chorley Borough Council,http://statistics.data.gov.uk/id/local-authority/30UE,Payments of Precepts to Parish,1018,CUST - Customer & Digital,Parish Council Tax,04500,Revenue Account Transfers,Balance,Parish Precept 23/24,17/05/2023,0180302,"13,652.00",Revenue,Heskin Parish Council,17029,,
Chorley Borough Council,http://statistics.data.gov.uk/id/local-authority/30UE,Payments of Precepts to Parish,1018,CUST - Customer & Digital,Parish Council Tax,04500,Revenue Account Transfers,Balance,Precepts,17/05/2023,0180309,"5,833.00",Revenue,Hoghton Parish Council,16188,,
Chorley Borough Council,http://statistics.data.gov.uk/id/local-authority/30UE,Central Support Services,1009,GOVN - Policy & Governance,Refuse Collection,20037,Cleaning and Domestic Supplies,5012,quarterly charges for all council sites for hygiene services 3800,31/05/2023,0180900,"3,064.63",Revenue,Initial,78488,,
Chorley Borough Council,http://statistics.data.gov.uk/id/local-authority/30UE,Control Accounts,Control,System,Manual Control Account,00001,Balance Sheet,Balance,,10/05/2023,0180011,831.03,Revenue,Inland Revenue 065py00102078,17445,,
Chorley Borough Council,http://statistics.data.gov.uk/id/local-authority/30UE,Culture & Heritage,1036,GROW - Commercial & Property,Tools & Equipment - Maintenance,40005,"Equipment, Furniture & Materia",5023,"Gutter/drain cleaning on Coach house/Hall as per quote ref EST0573., Date for work yet to be agreed/discussed. Price at Net as pe",10/05/2023,0180044,800.00,Revenue,JJL Windows and Exterior Cleaning,80931,,
Chorley Borough Council,http://statistics.data.gov.uk/id/local-authority/30UE,Service Management & Support,1009,CUST - Customer & Digital,Supplies-Grounds Maintenance,40025,"Equipment, Furniture & Materia",5023,19 @ 4.8m x 150mm x 50mm green timber,24/05/2023,0174785,788.40,Revenue,John H Mayor & Sons Ltd,16635,,
Chorley Borough Council,http://statistics.data.gov.uk/id/local-authority/30UE,Service Management & Support,1009,CUST - Customer & Digital,Supplies-Grounds Maintenance,40025,"Equipment, Furniture & Materia",5023,40 @ 4.2m x 150mm x 50mm green timber,24/05/2023,0179929,567.20,Revenue,John H Mayor & Sons Ltd,16635,,
Chorley Borough Council,http://statistics.data.gov.uk/id/local-authority/30UE,Service Management & Support,1009,CUST - Customer & Digital,Supplies-Grounds Maintenance,40025,"Equipment, Furniture & Materia",5023,75 @ 2.1m x 150mm x 75mm green timber,24/05/2023,0179929,797.25,Revenue,John H Mayor & Sons Ltd,16635,,
Chorley Borough Council,http://statistics.data.gov.uk/id/local-authority/30UE,Business Support,1095,GROW - Commercial & Property,General Repairs - Reactive,20004,Repairs Maintenance & Alts,5005,"Cost from Assa Abloy 2,032.00, Administration & Supervision 300.00, Incidental Works Overhead 233.20, , Total Quotation 2,565.20",17/05/2023,0180290,"2,565.20",Revenue,John Turner Construction Group Limited,82376,,
Chorley Borough Council,http://statistics.data.gov.uk/id/local-authority/30UE,Capital,Capital,PLAN - Planning & Development,Main Contractor,03007,Capital Expenditure,Capital,Construction of a Sports Pavilion at Wigan Lane Playing Fields with associated infrastructure and landscaping as set out in the t,17/05/2023,0179133,"113,657.55",Capital,John Wade Groundworks Ltd,76676,,
Chorley Borough Council,http://statistics.data.gov.uk/id/local-authority/30UE,Capital,Capital,PLAN - Planning & Development,Main Contractor,03007,Capital Expenditure,Capital,Construction of a Sports Pavilion at Wigan Lane Playing Fields with associated infrastructure and landscaping as set out in the t,10/05/2023,0179915,"44,143.25",Capital,John Wade Groundworks Ltd,76676,,
Chorley Borough Council,http://statistics.data.gov.uk/id/local-authority/30UE,Unapportionable Central OHeads,1009,GROW - Commercial & Property,General Repairs - Reactive,20004,Repairs Maintenance & Alts,5005,"Yarrow Valley / Birkacre, , Emergency works to stem the leak on the Big Lodge (22/04) and initial repair works",17/05/2023,0179965,"13,374.00",Revenue,John Wade Groundworks Ltd,76676,,
Chorley Borough Council,http://statistics.data.gov.uk/id/local-authority/30UE,Capital,Capital,EARL - Communities,Grants,03002,Capital Expenditure,Capital,14 cheam ave,10/05/2023,0180090,"5,700.00",Capital,K Berry Ltd,16421,,
Chorley Borough Council,http://statistics.data.gov.uk/id/local-authority/30UE,Central Support Services,1009,GOVN - Policy & Governance,Publicity - Advertising,40157,Miscellaneous Expenses,5034,"Chorley adverts to appear in the `This is Manchester` Guides, Invoice No: 24636",10/05/2023,0180042,"1,995.00",Revenue,Kingfisher Visitor Guides,78152,,
Chorley Borough Council,http://statistics.data.gov.uk/id/local-authority/30UE,Business Support,1095,GROW - Commercial & Property,Professional Fees,40063,Services,5027,"Negotiate a new 5 year lease to Peacocks Unit 31 & 32 Market Walk at a rent of 65,000 per annum., Request as per NAME REDACTED",17/05/2023,0179813,"4,875.00",Revenue,Knight Frank LLP,77571,,
Chorley Borough Council,http://statistics.data.gov.uk/id/local-authority/30UE,Precepts and Collection Fund,Precepts,GOVN - Policy & Governance,LCC Precept,02009,Precepts & Collection Fund,Precept,LCC CTax Precept,04/05/2023,0178460,"5,841,829.00",Revenue,Lancashire County Council,18386,,
Chorley Borough Council,http://statistics.data.gov.uk/id/local-authority/30UE,Collection Fund Revenue Accoun,,GOVN - Policy & Governance,NNDR County Share,02036,Precepts & Collection Fund,Precept,LCC B-Rates precepts,04/05/2023,0178460,"154,328.00",Revenue,Lancashire County Council,18386,,
Chorley Borough Council,http://statistics.data.gov.uk/id/local-authority/30UE,Precepts and Collection Fund,Precepts,GOVN - Policy & Governance,LCC Precept,02009,Precepts & Collection Fund,Precept,LCC Council Tax Precept,04/05/2023,0179758,"5,971,416.42",Revenue,Lancashire County Council,18386,,
Chorley Borough Council,http://statistics.data.gov.uk/id/local-authority/30UE,Collection Fund Revenue Accoun,,GOVN - Policy & Governance,NNDR County Share,02036,Precepts & Collection Fund,Precept,LCC Business Rates Precept,04/05/2023,0179758,"244,995.84",Revenue,Lancashire County Council,18386,,
Chorley Borough Council,http://statistics.data.gov.uk/id/local-authority/30UE,Capital,Capital,EARL - Communities,Grants,03002,Capital Expenditure,Capital,ADDRESS REDACTED,31/05/2023,0180833,"1,026.00",Capital,Lancashire County Council,17758,,
Chorley Borough Council,http://statistics.data.gov.uk/id/local-authority/30UE,Capital,Capital,EARL - Communities,Grants,03002,Capital Expenditure,Capital,ADDRESS REDACTED,31/05/2023,0180846,"1,073.00",Capital,Lancashire County Council,17758,,
Chorley Borough Council,http://statistics.data.gov.uk/id/local-authority/30UE,Capital,Capital,GROW - Commercial & Property,Sub Contractor,03008,Capital Expenditure,Capital,"Tatton Development , , Commuted sum request for Chorley Borough Council for the S278 agreement at Lytham, Street, Chorley as per ",31/05/2023,0180857,"3,450.00",Capital,Lancashire County Council,17758,,
Chorley Borough Council,http://statistics.data.gov.uk/id/local-authority/30UE,Capital,Capital,EARL - Communities,Grants,03002,Capital Expenditure,Capital,ADDRESS REDACTED,31/05/2023,0180884,"1,026.00",Capital,Lancashire County Council,17758,,
Chorley Borough Council,http://statistics.data.gov.uk/id/local-authority/30UE,Capital,Capital,EARL - Communities,Grants,03002,Capital Expenditure,Capital,ADDRESS REDACTED,31/05/2023,0180885,"2,559.00",Capital,Lancashire County Council,17758,,
Chorley Borough Council,http://statistics.data.gov.uk/id/local-authority/30UE,Central Support Services,1009,CUST - Customer & Digital,Clinical Waste Collection,50007,Private Contractors,5042,Domestic clinical waste collections 2023/24,24/05/2023,0180616,"2,208.06",Revenue,Lancashire Environmental Services,82309,,
Chorley Borough Council,http://statistics.data.gov.uk/id/local-authority/30UE,Unapportionable Central OHeads,1009,GROW - Commercial & Property,General Repairs - Reactive,20004,Repairs Maintenance & Alts,5005,Primrose - Gas / Air Con / Plumbing Reactive Repairs,24/05/2023,0179335,"2,275.05",Revenue,Lancashire Gas Services Ltd,78192,,
Chorley Borough Council,http://statistics.data.gov.uk/id/local-authority/30UE,Unapportionable Central OHeads,1009,GROW - Commercial & Property,General Repairs - Reactive,20004,Repairs Maintenance & Alts,5005,Bengal St - Gas / Air Con / Plumbing Reactive Repairs,24/05/2023,0179338,"1,697.11",Revenue,Lancashire Gas Services Ltd,78192,,
Chorley Borough Council,http://statistics.data.gov.uk/id/local-authority/30UE,Unapportionable Central OHeads,1009,GOVN - Policy & Governance,Pensions Increase Act Payments,18005,Indirect Employee Expenses,5002,PEnsion strain oct 22 NAME REDACTED,04/05/2023,0178456,"13,999.30",Revenue,Lancashire Pensions Services DD ONLY,16696,,
Chorley Borough Council,http://statistics.data.gov.uk/id/local-authority/30UE,Unapportionable Central OHeads,1009,GOVN - Policy & Governance,Pensions Increase Act Payments,18005,Indirect Employee Expenses,5002,CAY Oct 22,04/05/2023,0178457,"17,035.99",Revenue,Lancashire Pensions Services DD ONLY,16696,,
Chorley Borough Council,http://statistics.data.gov.uk/id/local-authority/30UE,Unapportionable Central OHeads,1009,GOVN - Policy & Governance,Pensions Increase Act Payments,18005,Indirect Employee Expenses,5002,CAY Nov 22,04/05/2023,0178458,"17,150.72",Revenue,Lancashire Pensions Services DD ONLY,16696,,
Chorley Borough Council,http://statistics.data.gov.uk/id/local-authority/30UE,Unapportionable Central OHeads,1009,GOVN - Policy & Governance,Pensions Increase Act Payments,18005,Indirect Employee Expenses,5002,CAY Mar 22,19/05/2023,0180154,"16,877.09",Revenue,Lancashire Pensions Services DD ONLY,16696,,
Chorley Borough Council,http://statistics.data.gov.uk/id/local-authority/30UE,Other Short Term Creditors,,GOVN - Policy & Governance,General Balances,00100,Balance Sheet,Balance,EE`s,19/05/2023,0180155,"53,218.04",Revenue,Lancashire Pensions Services DD ONLY,16696,,
Chorley Borough Council,http://statistics.data.gov.uk/id/local-authority/30UE,Precepts and Collection Fund,Precepts,GOVN - Policy & Governance,LCFA Precept,02011,Precepts & Collection Fund,Precept,LCFA Council Tax Precept,04/05/2023,0179759,"312,068.00",Revenue,Lancs Combined Fire Authority,17768,,
Chorley Borough Council,http://statistics.data.gov.uk/id/local-authority/30UE,Collection Fund Revenue Accoun,,GOVN - Policy & Governance,NNDR Fire Share,02037,Precepts & Collection Fund,Precept,LCFA Business Rates Precept,04/05/2023,0179759,"27,228.02",Revenue,Lancs Combined Fire Authority,17768,,
Chorley Borough Council,http://statistics.data.gov.uk/id/local-authority/30UE,Unapportionable Central OHeads,1009,GROW - Commercial & Property,General Repairs - Reactive,20004,Repairs Maintenance & Alts,5005,Undertake drainage and reinstatement works at Astley Park Walled Garden as tendered on 24th January.,03/05/2023,0179286,"6,679.65",Revenue,Landscape Engineering Ltd,54727,,
Chorley Borough Council,http://statistics.data.gov.uk/id/local-authority/30UE,Homelessness,1075,EARL - Communities,Prevention Fund,40242,Miscellaneous Expenses,5034,"Outstanding amounts owed against Invoices 149 & 162, , 1. Housing Options Service Review Chorley and South Ribble � stage 3 TA re",17/05/2023,0180565,"4,596.70",Revenue,Laura Paterson Ltd,85298,,
Chorley Borough Council,http://statistics.data.gov.uk/id/local-authority/30UE,Homelessness,1075,EARL - Communities,Prevention Fund,40242,Miscellaneous Expenses,5034,"Outstanding amounts owed against Invoices 149 & 162, , 1. Housing Options Service Review Chorley and South Ribble � stage 3 TA re",17/05/2023,0180567,"6,000.00",Revenue,Laura Paterson Ltd,85298,,
Chorley Borough Council,http://statistics.data.gov.uk/id/local-authority/30UE,Central Support Services,1009,GROW - Commercial & Property,Consultants` Fees,40077,Services,5027,Asset Valuations for the 2022-23 Statement of Accounts,17/05/2023,0180215,"30,316.00",Revenue,Lea Hough & Co LLP,76318,,
Chorley Borough Council,http://statistics.data.gov.uk/id/local-authority/30UE,Business Support,1095,GROW - Commercial & Property,Planned Maintenance,20006,Repairs Maintenance & Alts,5005,Carry out an assessment of 34 Market Walk and produce EPC,31/05/2023,0180861,600.00,Revenue,Lens Media Ltd,86993,,
Chorley Borough Council,http://statistics.data.gov.uk/id/local-authority/30UE,Community Development,1097,GROW - Commercial & Property,Planned Maintenance,20006,Repairs Maintenance & Alts,5005,"Carry out an EPC on Monday 15 May at Unit 1,2 and 7, Flat Iron Parade, Chorley (Poundland Ltd) and return the certificate by Fri ",31/05/2023,0180862,600.00,Revenue,Lens Media Ltd,86993,,
Chorley Borough Council,http://statistics.data.gov.uk/id/local-authority/30UE,Unapportionable Central OHeads,1009,GOVN - Policy & Governance,General Subscriptions,40146,Grants and Subscriptions,5031,"Collection Fund Suite  2023/24 7,645.00, Funding Briefing Service - 2023/24 1,945.00, Medium Term Revenue Resource Model - 202",17/05/2023,0180013,"11,049.00",Revenue,LG Futures,22551,,
Chorley Borough Council,http://statistics.data.gov.uk/id/local-authority/30UE,Capital,Capital,EARL - Communities,Grants,03002,Capital Expenditure,Capital,disabled facility grants,31/05/2023,0180847,"2,001.00",Capital,Liberata UK,20716,,
Chorley Borough Council,http://statistics.data.gov.uk/id/local-authority/30UE,Unapportionable Central OHeads,1009,GROW - Commercial & Property,Planned Maintenance,20006,Repairs Maintenance & Alts,5005,"Lightning Conductor Test & Inspections , , �	Whittle Surgery - In the sum of 275.00 + Vat, �	New Parish Building - In the sum of",03/05/2023,0179867,520.00,Revenue,Lightning Consultants (UK) Ltd,17446,,
Chorley Borough Council,http://statistics.data.gov.uk/id/local-authority/30UE,Corporate Management,1008,GOVN - Policy & Governance,Treasury Management Service,40065,Services,5027,Treasury Services for the period 01/10/2022 - 31/03/2023,31/05/2023,0180983,"7,975.00",Revenue,Link Treasury Services Limited,16428,,
Chorley Borough Council,http://statistics.data.gov.uk/id/local-authority/30UE,Tourism,1039,GOVN - Policy & Governance,Professional Fees,40063,Services,5027,"Jungle slide and circus activity trail inflatables hire for Picnic in the Park on Saturday 6 May from 10am - 3pm including staff,",24/05/2023,0180632,825.00,Revenue,LJ Events,85299,,
Chorley Borough Council,http://statistics.data.gov.uk/id/local-authority/30UE,Tourism,1039,GOVN - Policy & Governance,Publicity - Advertising,40157,Miscellaneous Expenses,5034,"Colne Life Magazine - March - May - Full Page B5 = 300 , Northern Life Family Magazine - March - June - Inside Back Cover Full P",31/05/2023,0180708,600.00,Revenue,Loop Publishing Ltd,18770,,
Chorley Borough Council,http://statistics.data.gov.uk/id/local-authority/30UE,Tourism,1039,GOVN - Policy & Governance,Professional Fees,40063,Services,5027,Appearance fee for Picnic in the Park on Saturday 6 May at Astley Park. 3 x 30 minute performances between 12noon and 3pm. Fee = ,17/05/2023,0180363,550.00,Revenue,Louby Lou Ltd,76335,,
Chorley Borough Council,http://statistics.data.gov.uk/id/local-authority/30UE,Unapportionable Central OHeads,1009,GOVN - Policy & Governance,Misc Expenses,40200,Miscellaneous Expenses,5034,Chorley Borough Council - Marketing Lancashire Annual Partnership 22/23,17/05/2023,0180346,"5,250.00",Revenue,Marketing Lancashire,65208,,
Chorley Borough Council,http://statistics.data.gov.uk/id/local-authority/30UE,Building Control,1090,PLAN - Planning & Development,Agency Staff,13000,Direct Employee Expenses,5001,Commenced 17.10.2022 agency fees for NAME REDACTED 37 hours p/w and NAME REDACTED 24 hours p/w until end of financial year 22/23,03/05/2023,0179177,"1,344.00",Revenue,Matchtech,77343,,
Chorley Borough Council,http://statistics.data.gov.uk/id/local-authority/30UE,Building Control,1090,PLAN - Planning & Development,Agency Staff,13000,Direct Employee Expenses,5001,Commenced 17.10.2022 agency fees for NAME REDACTED 37 hours p/w and NAME REDACTED 24 hours p/w until end of financial year 22/23,03/05/2023,0179940,"2,072.00",Revenue,Matchtech,77343,,
Chorley Borough Council,http://statistics.data.gov.uk/id/local-authority/30UE,Building Control,1090,PLAN - Planning & Development,Agency Staff,13000,Direct Employee Expenses,5001,Commenced 17.10.2022 agency fees for NAME REDACTED 37 hours p/w and NAME REDACTED 24 hours p/w until end of financial year 22/23,17/05/2023,0180086,"2,072.00",Revenue,Matchtech,77343,,
Chorley Borough Council,http://statistics.data.gov.uk/id/local-authority/30UE,Building Control,1090,PLAN - Planning & Development,Agency Staff,13000,Direct Employee Expenses,5001,Commenced 17.10.2022 agency fees for NAME REDACTED 37 hours p/w and NAME REDACTED 24 hours p/w until end of financial year 22/23,17/05/2023,0180336,"1,657.60",Revenue,Matchtech,77343,,
Chorley Borough Council,http://statistics.data.gov.uk/id/local-authority/30UE,Building Control,1090,PLAN - Planning & Development,Agency Staff,13000,Direct Employee Expenses,5001,Commenced 17.10.2022 agency fees for NAME REDACTED 37 hours p/w and NAME REDACTED 24 hours p/w until end of financial year 22/23,24/05/2023,0180635,"1,657.60",Revenue,Matchtech,77343,,
Chorley Borough Council,http://statistics.data.gov.uk/id/local-authority/30UE,Building Control,1090,PLAN - Planning & Development,Agency Staff,13000,Direct Employee Expenses,5001,Agency Fees for NAME REDACTED Building Control Officer May 2023 onwards,31/05/2023,0180856,"2,072.00",Revenue,Matchtech,77343,,
Chorley Borough Council,http://statistics.data.gov.uk/id/local-authority/30UE,Corporate Management,1008,CUST - Customer & Digital,Contributions Parish Councils,40144,Grants and Subscriptions,5031,Misc Contributions,17/05/2023,0180303,794.00,Revenue,Mawdesley Parish Council,17570,,
Chorley Borough Council,http://statistics.data.gov.uk/id/local-authority/30UE,Payments of Precepts to Parish,1018,CUST - Customer & Digital,Parish Council Tax,04500,Revenue Account Transfers,Balance,Parish Precept 23/24,17/05/2023,0180303,"35,692.00",Revenue,Mawdesley Parish Council,17570,,
Chorley Borough Council,http://statistics.data.gov.uk/id/local-authority/30UE,Corporate Management,1008,GROW - Commercial & Property,Promotional Expenses,40159,Miscellaneous Expenses,5034,"To provide the children`s fairground ride for Market Walk Fun Thursday - 6th & 13th April 2023, (free of charge for the children ",10/05/2023,0179815,500.00,Revenue,Maxine Hamer,76691,,
Chorley Borough Council,http://statistics.data.gov.uk/id/local-authority/30UE,Culture & Heritage,1036,GOVN - Policy & Governance,Tools & Equipment - Maintenance,40005,"Equipment, Furniture & Materia",5023,"Annual Meaco Radio Warranty Service Plan from 1/05/2023 920.00, Humidifier Service 300.00",17/05/2023,0180338,"1,220.00",Revenue,Meaco Measurement & Control Ltd,16527,,
Chorley Borough Council,http://statistics.data.gov.uk/id/local-authority/30UE,Unapportionable Central OHeads,1009,GROW - Commercial & Property,General Repairs - Reactive,20004,Repairs Maintenance & Alts,5005,CBC Parks Buildings Reactive Drainage and Groundworks Repair Works,17/05/2023,0179677,500.00,Revenue,Michael Roe,78294,,
Chorley Borough Council,http://statistics.data.gov.uk/id/local-authority/30UE,Unapportionable Central OHeads,1009,GROW - Commercial & Property,General Repairs - Reactive,20004,Repairs Maintenance & Alts,5005,CBC Cemeteries Reactive Drainage and Groundworks Repair Works,17/05/2023,0179697,"2,500.00",Revenue,Michael Roe,78294,,
Chorley Borough Council,http://statistics.data.gov.uk/id/local-authority/30UE,Unapportionable Central OHeads,1009,GROW - Commercial & Property,General Repairs - Reactive,20004,Repairs Maintenance & Alts,5005,Cotswold House Reactive Drainage and Groundworks Repair Works,17/05/2023,0179698,500.00,Revenue,Michael Roe,78294,,
Chorley Borough Council,http://statistics.data.gov.uk/id/local-authority/30UE,Unapportionable Central OHeads,1009,GROW - Commercial & Property,General Repairs - Reactive,20004,Repairs Maintenance & Alts,5005,CBC Sports Pitches & Pavilions Reactive Drainage and Groundworks Repair Works,17/05/2023,0179699,500.00,Revenue,Michael Roe,78294,,
Chorley Borough Council,http://statistics.data.gov.uk/id/local-authority/30UE,Unapportionable Central OHeads,1009,GROW - Commercial & Property,General Repairs - Reactive,20004,Repairs Maintenance & Alts,5005,CBC Housing Reactive Drainage and Groundworks Repair Works,17/05/2023,0179700,"1,000.00",Revenue,Michael Roe,78294,,
Chorley Borough Council,http://statistics.data.gov.uk/id/local-authority/30UE,Unapportionable Central OHeads,1009,GROW - Commercial & Property,General Repairs - Reactive,20004,Repairs Maintenance & Alts,5005,CBC Market Reactive Drainage and Groundworks Repair Works,17/05/2023,0179701,"2,500.00",Revenue,Michael Roe,78294,,
Chorley Borough Council,http://statistics.data.gov.uk/id/local-authority/30UE,Unapportionable Central OHeads,1009,GROW - Commercial & Property,General Repairs - Reactive,20004,Repairs Maintenance & Alts,5005,CBC Industrial Units Reactive Drainage and Groundworks Repair Works,17/05/2023,0179702,500.00,Revenue,Michael Roe,78294,,
Chorley Borough Council,http://statistics.data.gov.uk/id/local-authority/30UE,Unapportionable Central OHeads,1009,GROW - Commercial & Property,General Repairs - Reactive,20004,Repairs Maintenance & Alts,5005,Astley Hall & Buildings Reactive Drainage and Groundworks Repair Works,17/05/2023,0179703,"3,000.00",Revenue,Michael Roe,78294,,
Chorley Borough Council,http://statistics.data.gov.uk/id/local-authority/30UE,Unapportionable Central OHeads,1009,GROW - Commercial & Property,General Repairs - Reactive,20004,Repairs Maintenance & Alts,5005,CBC Community Centres Reactive Drainage and Groundworks Repair Works,17/05/2023,0179704,"2,000.00",Revenue,Michael Roe,78294,,
Chorley Borough Council,http://statistics.data.gov.uk/id/local-authority/30UE,Unapportionable Central OHeads,1009,GROW - Commercial & Property,General Repairs - Reactive,20004,Repairs Maintenance & Alts,5005,CBC Commercial Properties Reactive Drainage and Groundworks Repair Works,17/05/2023,0179705,"1,000.00",Revenue,Michael Roe,78294,,
Chorley Borough Council,http://statistics.data.gov.uk/id/local-authority/30UE,Unapportionable Central OHeads,1009,GROW - Commercial & Property,General Repairs - Reactive,20004,Repairs Maintenance & Alts,5005,Bengal Street Reactive Drainage and Groundworks Repair Works,17/05/2023,0179706,"1,000.00",Revenue,Michael Roe,78294,,
Chorley Borough Council,http://statistics.data.gov.uk/id/local-authority/30UE,Unapportionable Central OHeads,1009,GROW - Commercial & Property,General Repairs - Reactive,20004,Repairs Maintenance & Alts,5005,Union Street Reactive Drainage and Groundworks Repair Works,17/05/2023,0179707,500.00,Revenue,Michael Roe,78294,,
Chorley Borough Council,http://statistics.data.gov.uk/id/local-authority/30UE,Unapportionable Central OHeads,1009,GROW - Commercial & Property,General Repairs - Reactive,20004,Repairs Maintenance & Alts,5005,Town Hall Reactive Drainage and Groundworks Repair Works,17/05/2023,0179708,500.00,Revenue,Michael Roe,78294,,
Chorley Borough Council,http://statistics.data.gov.uk/id/local-authority/30UE,Unapportionable Central OHeads,1009,GROW - Commercial & Property,General Repairs - Reactive,20004,Repairs Maintenance & Alts,5005,CBC Car Parks Reactive Drainage and Groundworks Repair Works,17/05/2023,0179709,"2,000.00",Revenue,Michael Roe,78294,,
Chorley Borough Council,http://statistics.data.gov.uk/id/local-authority/30UE,Business Support,1095,GROW - Commercial & Property,General Repairs - Reactive,20004,Repairs Maintenance & Alts,5005,Strawberry Fields Reactive Drainage and Groundworks Repair Works,17/05/2023,0179710,"1,000.00",Revenue,Michael Roe,78294,,
Chorley Borough Council,http://statistics.data.gov.uk/id/local-authority/30UE,Business Support,1095,GROW - Commercial & Property,General Repairs - Reactive,20004,Repairs Maintenance & Alts,5005,Primrose Gardens Reactive Drainage and Groundworks Repair Works,17/05/2023,0180096,500.00,Revenue,Michael Roe,78294,,
Chorley Borough Council,http://statistics.data.gov.uk/id/local-authority/30UE,Business Support,1095,GROW - Commercial & Property,General Repairs - Reactive,20004,Repairs Maintenance & Alts,5005,Market Walk Reactive Drainage and Groundworks Repair Works,17/05/2023,0180098,"15,000.00",Revenue,Michael Roe,78294,,
Chorley Borough Council,http://statistics.data.gov.uk/id/local-authority/30UE,Service Management & Support,1009,CUST - Customer & Digital,Maintenance Street Furniture,20055,Grounds Maintenance Costs,5013,"Supply SNP`s for the addresses sent to NAME REDACTED - Foster, Style - black lettering with white background including the Chorley",24/05/2023,0179962,"1,529.00",Revenue,Midland Signs (Leicester) Ltd,16606,,
Chorley Borough Council,http://statistics.data.gov.uk/id/local-authority/30UE,Collection Fund Revenue Accoun,,GOVN - Policy & Governance,NNDR Central Share,02034,Precepts & Collection Fund,Precept,central share BR,04/05/2023,0178770,"920,618.00",Revenue,Ministry of Housing Communities & Local Government,16280,,
Chorley Borough Council,http://statistics.data.gov.uk/id/local-authority/30UE,Non Domestic Rates Redistribut,,GOVN - Policy & Governance,Local Share of Business Rates,69001,Income not in NCOS,,transitional protection 21-22,19/05/2023,0180094,"137,107.00",Revenue,Ministry of Housing Communities & Local Government,16280,,
Chorley Borough Council,http://statistics.data.gov.uk/id/local-authority/30UE,Non Domestic Rates Redistribut,,GOVN - Policy & Governance,Local Share of Business Rates,69001,Income not in NCOS,,transitional protection 20-21,19/05/2023,0180095,"176,960.00",Revenue,Ministry of Housing Communities & Local Government,16280,,
Chorley Borough Council,http://statistics.data.gov.uk/id/local-authority/30UE,Collection Fund Revenue Accoun,,GOVN - Policy & Governance,NNDR Central Share,02034,Precepts & Collection Fund,Precept,central share BR,19/05/2023,0180283,"1,195,529.00",Revenue,Ministry of Housing Communities & Local Government,16280,,
Chorley Borough Council,http://statistics.data.gov.uk/id/local-authority/30UE,Collection Fund Revenue Accoun,,GOVN - Policy & Governance,NNDR Central Share,02034,Precepts & Collection Fund,Precept,deficit coll fund,19/05/2023,0180283,"29,447.00",Revenue,Ministry of Housing Communities & Local Government,16280,,
Chorley Borough Council,http://statistics.data.gov.uk/id/local-authority/30UE,Capital,Capital,EARL - Communities,Grants,03002,Capital Expenditure,Capital,22/00143/DFG,03/05/2023,0179821,"7,114.03",Capital,Mint Northwest Ltd,65607,,
Chorley Borough Council,http://statistics.data.gov.uk/id/local-authority/30UE,Private Sector HSG Renewal,1073,EARL - Communities,External Contractor,40198,Miscellaneous Expenses,5034,Ref 200524,17/05/2023,0180341,560.00,Revenue,Mobility Care Services,70841,,
Chorley Borough Council,http://statistics.data.gov.uk/id/local-authority/30UE,Private Sector HSG Renewal,1073,EARL - Communities,External Contractor,40198,Miscellaneous Expenses,5034,Ref 200525,17/05/2023,0180341,950.00,Revenue,Mobility Care Services,70841,,
Chorley Borough Council,http://statistics.data.gov.uk/id/local-authority/30UE,Capital,Capital,PLAN - Planning & Development,Main Contractor,03007,Capital Expenditure,Capital,"New path creation at Milestone Meadow play area, Euxton",24/05/2023,0180630,"8,720.00",Capital,Mr Andy Hart,72236,,
Chorley Borough Council,http://statistics.data.gov.uk/id/local-authority/30UE,Unapportionable Central OHeads,1009,CUST - Customer & Digital,Service Fees,40056,Services,5027,Chorley Guardian - General Notices - NMC6231455,17/05/2023,0178518,"1,190.16",Revenue,National World Publishing Limited,20072,,
Chorley Borough Council,http://statistics.data.gov.uk/id/local-authority/30UE,Service Management & Support,1009,CUST - Customer & Digital,Refuse Collection,20037,Cleaning and Domestic Supplies,5012,"Removal and disposal of Hazardous waste from Bengal Street depot PR7 2HL, (work carried out on 9 March 2023)",17/05/2023,0180156,"1,665.00",Revenue,Neales Waste Management,17583,,
Chorley Borough Council,http://statistics.data.gov.uk/id/local-authority/30UE,Central Support Services,1009,CUST - Customer & Digital,Computer Equipment-Maintenance,40105,Communication and Computing,5028,Ipad cases,10/05/2023,0180030,"2,940.00",Revenue,Node 4,20541,,
Chorley Borough Council,http://statistics.data.gov.uk/id/local-authority/30UE,Democratic Represent and  Mgnt,1007,GOVN - Policy & Governance,Arts Development Initiatives,40187,Miscellaneous Expenses,5034,Vis Experience Dev - Crew 1 day shoot for Reginald Tatton,10/05/2023,0180059,"1,250.00",Revenue,North Film Studios Limited,85582,,
Chorley Borough Council,http://statistics.data.gov.uk/id/local-authority/30UE,Capital,Capital,GROW - Commercial & Property,Main Contractor,03007,Capital Expenditure,Capital,Traffic Management to allow for Town Hall Flagpole removal and installation of new ones with crane on Sunday 2nd April as per agr,03/05/2023,0179870,684.00,Capital,North West Traffic Management Ltd,88544,,
Chorley Borough Council,http://statistics.data.gov.uk/id/local-authority/30UE,Regulatory Services,1048,EARL - Communities,Tools & Equipment - Purchase,40003,"Equipment, Furniture & Materia",5023,Vans,10/05/2023,0180083,671.76,Revenue,Northgate Vehicle Hire (NW) Ltd,17360,,
Chorley Borough Council,http://statistics.data.gov.uk/id/local-authority/30UE,Parking Services,1066,GROW - Commercial & Property,Electricity,20013,Energy Costs,5006,01 jan 23 - 31 mar 23,24/05/2023,0180672,848.03,Revenue,Npower Commercial Gas,16814,,
Chorley Borough Council,http://statistics.data.gov.uk/id/local-authority/30UE,Business Support,1095,GROW - Commercial & Property,Electricity,20013,Energy Costs,5006,01 mar 23 - 31 mar 23,24/05/2023,0180674,"1,039.62",Revenue,Npower Commercial Gas,16814,,
Chorley Borough Council,http://statistics.data.gov.uk/id/local-authority/30UE,Business Support,1095,GROW - Commercial & Property,Electricity,20013,Energy Costs,5006,01 apr 23 - 30 apr 23,24/05/2023,0180676,"1,026.23",Revenue,Npower Commercial Gas,16814,,
Chorley Borough Council,http://statistics.data.gov.uk/id/local-authority/30UE,Business Support,1095,GROW - Commercial & Property,Electricity,20013,Energy Costs,5006,01 mar 23 - 31 mar 23,24/05/2023,0180682,"1,054.43",Revenue,Npower Commercial Gas,16814,,
Chorley Borough Council,http://statistics.data.gov.uk/id/local-authority/30UE,Central Support Services,1009,GROW - Commercial & Property,Electricity,20013,Energy Costs,5006,1/1 to 31/3/23,24/05/2023,0180691,"2,068.20",Revenue,Npower Commercial Gas,16814,,
Chorley Borough Council,http://statistics.data.gov.uk/id/local-authority/30UE,Unapportionable Central OHeads,1009,GROW - Commercial & Property,Electricity,20013,Energy Costs,5006,1/4 to 30/4/23,31/05/2023,0180811,"7,314.66",Revenue,Npower Commercial Gas,16814,,
Chorley Borough Council,http://statistics.data.gov.uk/id/local-authority/30UE,Business Support,1095,GROW - Commercial & Property,Electricity,20013,Energy Costs,5006,1/4 to 30/4/23,31/05/2023,0180812,"11,005.38",Revenue,Npower Commercial Gas,16814,,
Chorley Borough Council,http://statistics.data.gov.uk/id/local-authority/30UE,Unapportionable Central OHeads,1009,GROW - Commercial & Property,Electricity,20013,Energy Costs,5006,1/4 to 30/4/23,31/05/2023,0180814,"2,969.63",Revenue,Npower Commercial Gas,16814,,
Chorley Borough Council,http://statistics.data.gov.uk/id/local-authority/30UE,Business Support,1095,GROW - Commercial & Property,Electricity,20013,Energy Costs,5006,1/4 to 30/4/23,31/05/2023,0180815,"4,274.52",Revenue,Npower Commercial Gas,16814,,
Chorley Borough Council,http://statistics.data.gov.uk/id/local-authority/30UE,Central Support Services,1009,GROW - Commercial & Property,Electricity,20013,Energy Costs,5006,1/4 to 30/4/23,31/05/2023,0180816,"8,491.33",Revenue,Npower Commercial Gas,16814,,
Chorley Borough Council,http://statistics.data.gov.uk/id/local-authority/30UE,Tourism,1039,GOVN - Policy & Governance,Refreshments,40036,Catering,5024,"Chorley 10k , Chorley Cakes - packaged in plastic free, compostable packaging. Clearly labelled with full ingredients/allergens.,",17/05/2023,0180210,600.00,Revenue,Old Soul Bakery,88573,,
Chorley Borough Council,http://statistics.data.gov.uk/id/local-authority/30UE,Capital,Capital,PLAN - Planning & Development,Main Contractor,03007,Capital Expenditure,Capital,"FTTP at Springfield Road, Chorley., Openreach Ref CNS 473666/1, Openreach Invoice no. 1052983, CBC Ref ABU/00C",17/05/2023,0179251,"5,631.00",Capital,Openreach Limited,87010,,
Chorley Borough Council,http://statistics.data.gov.uk/id/local-authority/30UE,Capital,Capital,PLAN - Planning & Development,Main Contractor,03007,Capital Expenditure,Capital,"Openreach Reference CNS 479166/1. To Supply Openreach New Sites - Commercial For the: CHW/01O, At: JOHN WADE GROUNDWORKS LTD, WIG",17/05/2023,0179665,"13,085.00",Capital,Openreach Limited,87010,,
Chorley Borough Council,http://statistics.data.gov.uk/id/local-authority/30UE,Capital,Capital,GROW - Commercial & Property,Main Contractor,03007,Capital Expenditure,Capital,Town HallConstruct 1 hour fire compartment in server room.Works will include removal and reinstatement of all services,24/05/2023,0180575,"17,436.00",Capital,Optimum commercial interiors,87262,,
Chorley Borough Council,http://statistics.data.gov.uk/id/local-authority/30UE,Capital,Capital,GROW - Commercial & Property,Main Contractor,03007,Capital Expenditure,Capital,Labour,24/05/2023,0180575,"6,125.00",Capital,Optimum commercial interiors,87262,,
Chorley Borough Council,http://statistics.data.gov.uk/id/local-authority/30UE,Business Support,1095,GROW - Commercial & Property,Cleaning Materials,40019,"Equipment, Furniture & Materia",5023,12 x AA301 Smart One mini toilet rolls @ 45.37,10/05/2023,0179820,544.44,Revenue,Pattersons Holdings (Bristol),77537,,
Chorley Borough Council,http://statistics.data.gov.uk/id/local-authority/30UE,Tourism,1039,GOVN - Policy & Governance,Professional Fees,40063,Services,5027,"Stage and sound equipment for Picnic in the Park on Saturday 6 May., 800 equipment hire and , 535 in staffing costs (3 x 175),",17/05/2023,0180295,"1,325.00",Revenue,Paul K Sound & Vision,16607,,
Chorley Borough Council,http://statistics.data.gov.uk/id/local-authority/30UE,Central Support Services,1009,CUST - Customer & Digital,Printing,40043,"Printing, Stationery & General",5026,Garden Waste subscription permits 2023/24,24/05/2023,0180253,"21,414.69",Revenue,Permiserv Ltd,77202,,
Chorley Borough Council,http://statistics.data.gov.uk/id/local-authority/30UE,Unapportionable Central OHeads,1009,GOVN - Policy & Governance,HR Recruitment Expenses,15200,Indirect Employee Expenses,5002,Invoice 392484 - DBS checks for staff,10/05/2023,0179770,738.30,Revenue,Personnel Checks Ltd,81534,,
Chorley Borough Council,http://statistics.data.gov.uk/id/local-authority/30UE,Central Support Services,1009,CUST - Customer & Digital,Computer - Support Services,40111,Communication and Computing,5028,Top up of VSA Account,24/05/2023,0178721,"1,000.00",Revenue,Phoenix Software Ltd,17046,,
Chorley Borough Council,http://statistics.data.gov.uk/id/local-authority/30UE,Central Support Services,1009,GOVN - Policy & Governance,Exhibitions & Special Events,40158,Miscellaneous Expenses,5034,EVA`s Business Awards 2023. Chorley Council award category sponsorship package,24/05/2023,0180331,"3,500.00",Revenue,Pink Link Ladies Ltd,66886,,
Chorley Borough Council,http://statistics.data.gov.uk/id/local-authority/30UE,Central Support Services,1009,CUST - Customer & Digital,Consultants` Fees,40077,Services,5027,"Contract work to assist with planning enforcement, Contractor: NAME REDACTED Time period: 1 April 2023  31 March 2024",10/05/2023,0179959,"2,869.00",Revenue,Planning and PACE Solutions Ltd,82083,,
Chorley Borough Council,http://statistics.data.gov.uk/id/local-authority/30UE,Precepts and Collection Fund,Precepts,GOVN - Policy & Governance,LPA Precept,02010,Precepts & Collection Fund,Precept,PCC Council tax precept,04/05/2023,0178461,"912,252.00",Revenue,Police & Crime Commissioner,17438,,
Chorley Borough Council,http://statistics.data.gov.uk/id/local-authority/30UE,Precepts and Collection Fund,Precepts,GOVN - Policy & Governance,LPA Precept,02010,Precepts & Collection Fund,Precept,,04/05/2023,0179757,"953,888.17",Revenue,Police & Crime Commissioner,17438,,
Chorley Borough Council,http://statistics.data.gov.uk/id/local-authority/30UE,Local Tax Collection,1010,GOVN - Policy & Governance,Other Contributions,40145,Grants and Subscriptions,5031,LRF Contributions 2023/24,17/05/2023,0180258,978.53,Revenue,Police & Crime Commissioner,17548,,
Chorley Borough Council,http://statistics.data.gov.uk/id/local-authority/30UE,Capital,Capital,PLAN - Planning & Development,Main Contractor,03007,Capital Expenditure,Capital,Wigan Lane Archery signage for the building as set out in Quote AD18673/1. proposed installation date 3rd May 2023.,24/05/2023,0180782,760.18,Capital,Poppy Signs Ltd,21898,,
Chorley Borough Council,http://statistics.data.gov.uk/id/local-authority/30UE,Elections,1012,GOVN - Policy & Governance,Rent/Hire Of Premises,20017,Premises Rents,5007,"As per quote 220208707 for SL122- PK161 Polling Booth, Description	Price (�), Buildings Price 	3,382.00, Delivery of building(s) ",17/05/2023,0180125,"11,360.00",Revenue,Portakabin Limited,51521,,
Chorley Borough Council,http://statistics.data.gov.uk/id/local-authority/30UE,Tourism,1039,GOVN - Policy & Governance,Professional Fees,40063,Services,5027,Hiring of Bungee trampolines and staff for Picnic in the Park on Saturday 6 May 2023 at Astley Park Chorley including set up and ,24/05/2023,0180627,600.00,Revenue,Presley Cook,88639,,
Chorley Borough Council,http://statistics.data.gov.uk/id/local-authority/30UE,Capital,Capital,EARL - Communities,Grants,03002,Capital Expenditure,Capital,Handyperson services Q1 2023/24 payable from DFG budget,17/05/2023,0180213,"6,250.00",Capital,Preston Care and Repair,50018,,
Chorley Borough Council,http://statistics.data.gov.uk/id/local-authority/30UE,Homelessness,1075,EARL - Communities,Other Fees,40212,Miscellaneous Expenses,5034,"Chorley Council`s contribution towards the AFeO Prgramme, (as agreed with NAME REDACTED)",10/05/2023,0180002,"10,000.00",Revenue,Preston City Council,16657,,
Chorley Borough Council,http://statistics.data.gov.uk/id/local-authority/30UE,Elections,1012,GOVN - Policy & Governance,Printing,40043,"Printing, Stationery & General",5026,large print ballot papers,17/05/2023,0180350,573.39,Revenue,Print Image Network,21171,,
Chorley Borough Council,http://statistics.data.gov.uk/id/local-authority/30UE,Elections,1012,GOVN - Policy & Governance,Printing,40043,"Printing, Stationery & General",5026,Borough Postal Vote Packs - 4 May 2023,17/05/2023,0180386,"19,546.78",Revenue,Print Image Network,21171,,
Chorley Borough Council,http://statistics.data.gov.uk/id/local-authority/30UE,Elections,1012,GOVN - Policy & Governance,Printing,40043,"Printing, Stationery & General",5026,Borough Ballot Books - 4 May 2023,17/05/2023,0180387,"10,163.46",Revenue,Print Image Network,21171,,
Chorley Borough Council,http://statistics.data.gov.uk/id/local-authority/30UE,Elections,1012,GOVN - Policy & Governance,Printing,40043,"Printing, Stationery & General",5026,Parish Ballot Books - 4 may 2023,31/05/2023,0180841,"1,546.00",Revenue,Print Image Network,21171,,
Chorley Borough Council,http://statistics.data.gov.uk/id/local-authority/30UE,Elections,1012,GOVN - Policy & Governance,Printing,40043,"Printing, Stationery & General",5026,"Parish Elections 2023, Postal vote packs",31/05/2023,0180842,"4,158.80",Revenue,Print Image Network,21171,,
Chorley Borough Council,http://statistics.data.gov.uk/id/local-authority/30UE,Unapportionable Central OHeads,1009,GROW - Commercial & Property,General Repairs - Reactive,20004,Repairs Maintenance & Alts,5005,materials,17/05/2023,0168767,900.00,Revenue,PSR & Sons Joiners and Building Contractors Ltd,83967,,
Chorley Borough Council,http://statistics.data.gov.uk/id/local-authority/30UE,Interest Payable on Debt,1020,GOVN - Policy & Governance,Interest Payable,09009,Interest Payments,5067,interest LN 509178,04/05/2023,0179822,"23,972.50",Revenue,Public Works Loans Board,21480,,
Chorley Borough Council,http://statistics.data.gov.uk/id/local-authority/30UE,Capital,Capital,PLAN - Planning & Development,Main Contractor,03007,Capital Expenditure,Capital,Construction of Changing Facility at King George V Playing Fields. Original contract value of 939165.78 minus 84950 invoiced and ,24/05/2023,0180754,"66,139.39",Capital,Pulse Design and Build Ltd,85602,,
Chorley Borough Council,http://statistics.data.gov.uk/id/local-authority/30UE,Homelessness,1075,EARL - Communities,Grants to Voluntary Organisations,40124,Grants and Subscriptions,5031,"Private Hire ID 76866 Movement ID 159253 Passengers 30 Movement Details - Monday 8th May, Pick Up 10:00 (Cleveland Street) to Liv",17/05/2023,0180286,895.00,Revenue,R S Tyrer Ltd,16255,,
Chorley Borough Council,http://statistics.data.gov.uk/id/local-authority/30UE,Regulatory Services,1048,PLAN - Planning & Development,Taxi Testing & Vehicle Safety Report,40234,Services,5027,taxi tests,17/05/2023,0180092,518.80,Revenue,R.C.J Motors,63625,,
Chorley Borough Council,http://statistics.data.gov.uk/id/local-authority/30UE,Building Control,1090,PLAN - Planning & Development,General Subscriptions,40146,Grants and Subscriptions,5031,"Submit a Plan- Invoice Number 10059, Annual Support Renewal, Support Valid 28.06.23 -27.06.24.",24/05/2023,0180576,695.00,Revenue,Resolution Data Management Ltd,48223,,
Chorley Borough Council,http://statistics.data.gov.uk/id/local-authority/30UE,Control Accounts,Control,GOVN - Policy & Governance,General Balances,00100,Balance Sheet,Balance,31 Mar 2023,04/05/2023,0179403,512.00,Revenue,Reward Gateway (UK) Ltd,66814,,
Chorley Borough Council,http://statistics.data.gov.uk/id/local-authority/30UE,Homelessness,1075,EARL - Communities,Other Contributions,40145,Grants and Subscriptions,5031,"ADDRESS REDACTED, Draught proofing on windows and doors",17/05/2023,0180319,"1,550.00",Revenue,Rhea Projects Ltd,77753,,
Chorley Borough Council,http://statistics.data.gov.uk/id/local-authority/30UE,Homelessness,1075,EARL - Communities,Other Contributions,40145,Grants and Subscriptions,5031,"ADDRESS REDACTED, 2x Replacement Doors",17/05/2023,0180320,"2,755.00",Revenue,Rhea Projects Ltd,77753,,
Chorley Borough Council,http://statistics.data.gov.uk/id/local-authority/30UE,Homelessness,1075,EARL - Communities,Other Contributions,40145,Grants and Subscriptions,5031,"ADDRESS REDACTED, Glazing improvements",17/05/2023,0180321,"4,870.00",Revenue,Rhea Projects Ltd,77753,,
Chorley Borough Council,http://statistics.data.gov.uk/id/local-authority/30UE,Homelessness,1075,EARL - Communities,Other Contributions,40145,Grants and Subscriptions,5031,"ADDRESS REDACTED, Boiler replacement and 1 radiator replacement",17/05/2023,0180323,"2,525.00",Revenue,Rhea Projects Ltd,77753,,
Chorley Borough Council,http://statistics.data.gov.uk/id/local-authority/30UE,Homelessness,1075,EARL - Communities,Other Contributions,40145,Grants and Subscriptions,5031,"ADDRESS REDACTED, Boiler replacement",17/05/2023,0180325,"2,875.00",Revenue,Rhea Projects Ltd,77753,,
Chorley Borough Council,http://statistics.data.gov.uk/id/local-authority/30UE,Homelessness,1075,EARL - Communities,Other Contributions,40145,Grants and Subscriptions,5031,"ADDRESS REDACTED, Boiler replacement",17/05/2023,0180327,"1,995.00",Revenue,Rhea Projects Ltd,77753,,
Chorley Borough Council,http://statistics.data.gov.uk/id/local-authority/30UE,Non Domestic Rates Redistribut,,GOVN - Policy & Governance,Tariff to Business Rates Pool,49002,Expenditure not in NCOS,,lancs bus rates pool,04/05/2023,0178771,"520,258.00",Revenue,Ribble Valley Borough Council DIRECT DEBIT ONLY,21100,,
Chorley Borough Council,http://statistics.data.gov.uk/id/local-authority/30UE,Non Domestic Rates Redistribut,,GOVN - Policy & Governance,Tariff to Business Rates Pool,49002,Expenditure not in NCOS,,lancs b-rates pool,19/05/2023,0180282,"677,356.00",Revenue,Ribble Valley Borough Council DIRECT DEBIT ONLY,21100,,
Chorley Borough Council,http://statistics.data.gov.uk/id/local-authority/30UE,Planning Policy,1092,PLAN - Planning & Development,Consultants` Fees,40077,Services,5027,PURCHASE OF CONSULTANCY SERVICES FOR PROGRESSION OF THE CENTRAL LANCASHIRE LOCAL PLAN IN 2023,24/05/2023,0180617,"12,375.00",Revenue,Richard Wood Associates Ltd,86909,,
Chorley Borough Council,http://statistics.data.gov.uk/id/local-authority/30UE,Capital,Capital,GROW - Commercial & Property,Consultants Fees,03025,Capital Expenditure,Capital,Tatton Gardens Professional Fees - Unpaid Invoice 910337,10/05/2023,0179486,"9,540.00",Capital,Rider Levett Bucknall,67527,,
Chorley Borough Council,http://statistics.data.gov.uk/id/local-authority/30UE,Capital,Capital,GROW - Commercial & Property,Consultants Fees,03025,Capital Expenditure,Capital,"Outstanding payment Alker (prev PRD064957)  4,770.00, 2 months additional Fee Alker 7,150",10/05/2023,0179662,"7,150.00",Capital,Rider Levett Bucknall,67527,,
Chorley Borough Council,http://statistics.data.gov.uk/id/local-authority/30UE,Capital,Capital,GROW - Commercial & Property,Consultants Fees,03025,Capital Expenditure,Capital,"PM/QS + Building Surveyor professional services extension - Tatton Gardens Development, Chorley",10/05/2023,0179673,"1,909.40",Capital,Rider Levett Bucknall,67527,,
Chorley Borough Council,http://statistics.data.gov.uk/id/local-authority/30UE,Central Support Services,1009,GROW - Commercial & Property,Professional Fees,40063,Services,5027,Alker Lane NAME REDACTED,10/05/2023,0179688,"2,380.00",Revenue,Rider Levett Bucknall,67527,,
Chorley Borough Council,http://statistics.data.gov.uk/id/local-authority/30UE,Capital,Capital,GROW - Commercial & Property,Consultants Fees,03025,Capital Expenditure,Capital,"Outstanding payment Alker (prev PRD064957)  4,770.00, 2 months additional Fee Alker 7,150",10/05/2023,0179688,"4,770.00",Capital,Rider Levett Bucknall,67527,,
Chorley Borough Council,http://statistics.data.gov.uk/id/local-authority/30UE,Capital,Capital,GROW - Commercial & Property,Consultants Fees,03025,Capital Expenditure,Capital,Extension NAME REDACTED Services - Alker Lane Project (Strawberry Meadows Business Park),10/05/2023,0179688,"17,872.50",Capital,Rider Levett Bucknall,67527,,
Chorley Borough Council,http://statistics.data.gov.uk/id/local-authority/30UE,Capital,Capital,GROW - Commercial & Property,Consultants Fees,03025,Capital Expenditure,Capital,Alker Lane (Missing Invoice Payment) - RLB-PJI-010554,24/05/2023,0180572,522.00,Capital,Rider Levett Bucknall,67527,,
Chorley Borough Council,http://statistics.data.gov.uk/id/local-authority/30UE,Open Spaces,1038,CUST - Customer & Digital,Supplies-Grounds Maintenance,40025,"Equipment, Furniture & Materia",5023,"Supply 7 kg of Rainbow Annuals, 6kg Rainbow Perennials & 2kg Endurance",10/05/2023,0179782,"2,146.00",Revenue,Rigby Taylor Ltd,16299,,
Chorley Borough Council,http://statistics.data.gov.uk/id/local-authority/30UE,Open Spaces,1038,CUST - Customer & Digital,Supplies-Grounds Maintenance,40025,"Equipment, Furniture & Materia",5023,"Supply 7 kg of Rainbow Annuals, 6kg Rainbow Perennials & 2kg Endurance",10/05/2023,0179783,"1,687.90",Revenue,Rigby Taylor Ltd,16299,,
Chorley Borough Council,http://statistics.data.gov.uk/id/local-authority/30UE,Business Support,1095,GROW - Commercial & Property,Promotional Expenses,40159,Miscellaneous Expenses,5034,"Per your invoice IR0077185, marketing fees for May 2023",10/05/2023,0180012,"1,020.00",Revenue,Rightmove Group Ltd,77717,,
Chorley Borough Council,http://statistics.data.gov.uk/id/local-authority/30UE,Payments of Precepts to Parish,1018,CUST - Customer & Digital,Parish Council Tax,04500,Revenue Account Transfers,Balance,Parish Precepts,17/05/2023,0180296,"2,331.00",Revenue,Rivington Parish Council,16209,,
Chorley Borough Council,http://statistics.data.gov.uk/id/local-authority/30UE,Democratic Represent and  Mgnt,1007,GOVN - Policy & Governance,Arts Development Initiatives,40187,Miscellaneous Expenses,5034,Vis Experience Dev - Actor 1 day shoot for Reginald Tatton,31/05/2023,0180903,550.00,Revenue,Rob Ward,85392,,
Chorley Borough Council,http://statistics.data.gov.uk/id/local-authority/30UE,Elections,1012,GOVN - Policy & Governance,Postages,40082,Communication and Computing,5028,"Sent postal votes for Borough/Parish Elections 2023 , 1st batch 19 April, 2nd batch 24 April",17/05/2023,0180201,"15,320.88",Revenue,Royal Mail Group Plc,17522,,
Chorley Borough Council,http://statistics.data.gov.uk/id/local-authority/30UE,Elections,1012,GOVN - Policy & Governance,Postages,40082,Communication and Computing,5028,Postal vote returns for Borough/Parish Elections 2023 - RXAE-GAEJ-REXH business reply account,17/05/2023,0180202,"4,349.18",Revenue,Royal Mail Group Plc,17522,,
Chorley Borough Council,http://statistics.data.gov.uk/id/local-authority/30UE,Elections,1012,GOVN - Policy & Governance,Postages,40082,Communication and Computing,5028,Postal vote returns for Borough/Parish Elections 2023 - RXAE-GAEJ-REXH business reply account,24/05/2023,0180583,"5,883.46",Revenue,Royal Mail Group Plc,17522,,
Chorley Borough Council,http://statistics.data.gov.uk/id/local-authority/30UE,Elections,1012,GOVN - Policy & Governance,Postages,40082,Communication and Computing,5028,Postal vote returns for Borough/Parish Elections 2023 - RXAE-GAEJ-REXH business reply account,24/05/2023,0180595,"1,880.60",Revenue,Royal Mail Group Plc,17522,,
Chorley Borough Council,http://statistics.data.gov.uk/id/local-authority/30UE,Culture & Heritage,1036,GOVN - Policy & Governance,Exhibitions,40176,Miscellaneous Expenses,5034,Chinwe Russell Exhibition Final Payment,17/05/2023,0179647,"1,190.00",Revenue,Sanders Exhibition Service Ltd,76737,,
Chorley Borough Council,http://statistics.data.gov.uk/id/local-authority/30UE,Business Support,1095,GROW - Commercial & Property,Security Service,40062,Services,5027,"To provide evening Site Security Services at Market Walk Shopping Centre from 5pm until midnight, 7 days a week. Hourly rate 12.",24/05/2023,0180031,"2,583.00",Revenue,Secure FM Ltd,86928,,
Chorley Borough Council,http://statistics.data.gov.uk/id/local-authority/30UE,Business Support,1095,GROW - Commercial & Property,Security Service,40062,Services,5027,To provide concierge services at Primrose Gardens Extra Care Facility as outlined by premises manager - 7 days a week. Hourly Rat,31/05/2023,0180538,"7,967.70",Revenue,Secure FM Ltd,86928,,
Chorley Borough Council,http://statistics.data.gov.uk/id/local-authority/30UE,Homelessness,1075,GROW - Commercial & Property,Security Service,40062,Services,5027,"To provide site concierge services at Cotswold House temporary accommodation facility, hours as outlined , by the premises manage",31/05/2023,0180539,"7,967.70",Revenue,Secure FM Ltd,86928,,
Chorley Borough Council,http://statistics.data.gov.uk/id/local-authority/30UE,Central Support Services,1009,GOVN - Policy & Governance,Consultants` Fees,40077,Services,5027,"Event Partnership (consultancy, planning & delivering network events in 2023/24)",10/05/2023,0180190,"5,000.00",Revenue,Shout Network Limited,69551,,
Chorley Borough Council,http://statistics.data.gov.uk/id/local-authority/30UE,Capital,Capital,GROW - Commercial & Property,Main Contractor,03007,Capital Expenditure,Capital,"Internal Building Fabric Works at Brinscall Baths, as per Adam Welsby Request",17/05/2023,0179830,"1,739.28",Capital,Singleton and Smart,85371,,
Chorley Borough Council,http://statistics.data.gov.uk/id/local-authority/30UE,Service Management & Support,1009,CUST - Customer & Digital,Supplies-Grounds Maintenance,40025,"Equipment, Furniture & Materia",5023,Supply 3 Green Metal Benches,24/05/2023,0180377,"1,680.00",Revenue,SM Sheet Metal Ltd,21243,,
Chorley Borough Council,http://statistics.data.gov.uk/id/local-authority/30UE,Central Support Services,1009,EARL - Communities,Professional Fees,40063,Services,5027,"Smile mediation referral - NAME REDACTED � ADDRESS REDACTED., , NAME REDACTED � ADDRESS REDACTED",03/05/2023,0179932,650.00,Revenue,Smile Mediation Ltd,62536,,
Chorley Borough Council,http://statistics.data.gov.uk/id/local-authority/30UE,Unapportionable Central OHeads,1009,GOVN - Policy & Governance,Service Fees to other Local Authorities,40076,Services,5027,Quarter 4 Recharges 2022/23,17/05/2023,0180214,"980,274.27",Revenue,South Ribble Borough Council,17889,,
Chorley Borough Council,http://statistics.data.gov.uk/id/local-authority/30UE,Central Support Services,1009,GOVN - Policy & Governance,Pensions Increase Act Payments,18005,Indirect Employee Expenses,5002,Chorley share of ICT Pension Strain Costs,31/05/2023,0180904,"14,840.45",Revenue,South Ribble Borough Council,17889,,
Chorley Borough Council,http://statistics.data.gov.uk/id/local-authority/30UE,Business Support,1095,GROW - Commercial & Property,Fixtures & Fittings - Repair/Mtnce,20028,Fixtures and Fittings,5010,"Market Walk full canopy clean including green area on roof above boots and windows above canopy. (Including any , vacant unit gro",10/05/2023,0179839,"4,590.00",Revenue,Sparkle Window Cleaning (Michael Jennings),77989,,
Chorley Borough Council,http://statistics.data.gov.uk/id/local-authority/30UE,Capital,Capital,PLAN - Planning & Development,Main Contractor,03007,Capital Expenditure,Capital,Transfer Grant contribution of S106 towards project 147 Croft Field for enhancement of the play area,31/05/2023,0180844,"1,482.00",Capital,St Michaels Church,49212,,
Chorley Borough Council,http://statistics.data.gov.uk/id/local-authority/30UE,Capital,Capital,EARL - Communities,Grants,03002,Capital Expenditure,Capital,,03/05/2023,0179753,"13,940.39",Capital,Stannah Lift Services Ltd,80943,,
Chorley Borough Council,http://statistics.data.gov.uk/id/local-authority/30UE,Capital,Capital,EARL - Communities,Grants,03002,Capital Expenditure,Capital,ADDRESS REDACTED,31/05/2023,0180852,"5,547.00",Capital,Stannah Lift Services Ltd,80943,,
Chorley Borough Council,http://statistics.data.gov.uk/id/local-authority/30UE,Capital,Capital,GROW - Commercial & Property,Other Contractor,03012,Capital Expenditure,Capital,"Digital Office Park, Additional Parking, Chorley, Engineering Services Quote 05 - 2022, , Undertake detailed site survey, provide",17/05/2023,0178712,535.48,Capital,Street Civil Engineering Limited,76750,,
Chorley Borough Council,http://statistics.data.gov.uk/id/local-authority/30UE,Capital,Capital,EARL - Communities,Grants,03002,Capital Expenditure,Capital,ADDRESS REDACTED,10/05/2023,0180089,"7,367.50",Capital,Stringfellow Bldg Cntrctrs Ltd,17893,,
Chorley Borough Council,http://statistics.data.gov.uk/id/local-authority/30UE,Elections,1012,GOVN - Policy & Governance,Tools & Equipment - Purchase,40003,"Equipment, Furniture & Materia",5023,"As per quotation, Re: Election 4th May 2023, To supply and maintain generator for the White Horse pub, Adlington with site fencin",17/05/2023,0180206,"2,923.10",Revenue,Stringfellow Bldg Cntrctrs Ltd,17893,,
Chorley Borough Council,http://statistics.data.gov.uk/id/local-authority/30UE,Central Support Services,1009,GOVN - Policy & Governance,Mayoral Hospitality,40123,Expenses,5030,Catering for the Mayor`s Civic Dinner on Friday 19 May 2023. 96 people @ 12 per head.,24/05/2023,0180767,"1,152.00",Revenue,Style Catering,66901,,
Chorley Borough Council,http://statistics.data.gov.uk/id/local-authority/30UE,Economic Development,1096,GROW - Commercial & Property,Refuse Collection,20037,Cleaning and Domestic Supplies,5012,"Market Walk/Market Walk Extension/Markets/Calico Lounge/Reel Cinema Waste Removal 01.04.2022 - , 31.03.2023:, , Market Walk YARD ",10/05/2023,0179800,"2,260.26",Revenue,SUEZ R&R UK LTD,17615,,
Chorley Borough Council,http://statistics.data.gov.uk/id/local-authority/30UE,Central Support Services,1009,EARL - Communities,Misc Expenses,40200,Miscellaneous Expenses,5034,Skip and Driver Hire and waste disposal for Euxton Skip Day on Saturday 1st April 2023,10/05/2023,0180043,563.02,Revenue,SUEZ R&R UK LTD,17615,,
Chorley Borough Council,http://statistics.data.gov.uk/id/local-authority/30UE,Central Support Services,1009,CUST - Customer & Digital,CCTV Camera Maintenance,40007,"Equipment, Furniture & Materia",5023,"Coronation Rec PTZ Repair, Redvision Repair , Reinstallation by Technology Solutions , Cost Schedule, The costs are as follows:5",10/05/2023,0179823,583.42,Revenue,Technology Solutions,72376,,
Chorley Borough Council,http://statistics.data.gov.uk/id/local-authority/30UE,Central Support Services,1009,GOVN - Policy & Governance,Copyright Licence Fees,40168,Miscellaneous Expenses,5034,From 1st May 2023 to 30th April 2024.,24/05/2023,0180349,"1,469.46",Revenue,The Copyright Licensing Agency Ltd,17480,,
Chorley Borough Council,http://statistics.data.gov.uk/id/local-authority/30UE,Business Support,1095,GROW - Commercial & Property,Security Service,40062,Services,5027,"Provision of SIA Security Officers, April 2023",17/05/2023,0180256,"8,276.51",Revenue,The ExcluSec Group Ltd,78056,,
Chorley Borough Council,http://statistics.data.gov.uk/id/local-authority/30UE,Central Support Services,1009,EARL - Communities,Misc Expenses,40200,Miscellaneous Expenses,5034,Contribution towards CIL project delivery,17/05/2023,0180389,"7,834.00",Revenue,"The Friends of St Laurence`s Church, Chorley",78276,,
Chorley Borough Council,http://statistics.data.gov.uk/id/local-authority/30UE,Central Support Services,1009,CUST - Customer & Digital,IT Software - Annual Licences,40101,Communication and Computing,5028,300 rmacs,31/05/2023,0179784,"16,500.00",Revenue,The Networking People (NorthWest) Ltd T/a TNP Ltd,73446,,
Chorley Borough Council,http://statistics.data.gov.uk/id/local-authority/30UE,Central Support Services,1009,CUST - Customer & Digital,External Contractor,40198,Miscellaneous Expenses,5034,"Tatton Gardens 1GB R02, Route 1, Route 2 , CH Satellite site, Fortinet Equipment, as per quote SQ110036",31/05/2023,0180340,"1,417.90",Revenue,The Networking People (NorthWest) Ltd T/a TNP Ltd,73446,,
Chorley Borough Council,http://statistics.data.gov.uk/id/local-authority/30UE,Central Support Services,1009,CUST - Customer & Digital,External Contractor,40198,Miscellaneous Expenses,5034,"Tatton Gardens 1GB R02, Route 1, Route 2 , CH Satellite site, Fortinet Equipment, as per quote SQ110036",31/05/2023,0180868,"8,257.04",Revenue,The Networking People (NorthWest) Ltd T/a TNP Ltd,73446,,
Chorley Borough Council,http://statistics.data.gov.uk/id/local-authority/30UE,Central Support Services,1009,GOVN - Policy & Governance,Agency Staff,13000,Direct Employee Expenses,5001,Charges for Interim Director of Commercial & Property Services,24/05/2023,0179481,"21,600.00",Revenue,Tile Hill Interim & Executive Ltd,87048,,
Chorley Borough Council,http://statistics.data.gov.uk/id/local-authority/30UE,Central Support Services,1009,GOVN - Policy & Governance,Agency Staff,13000,Direct Employee Expenses,5001,Charges for Interim Director of Commercial & Property Services,24/05/2023,0180205,"12,960.00",Revenue,Tile Hill Interim & Executive Ltd,87048,,
Chorley Borough Council,http://statistics.data.gov.uk/id/local-authority/30UE,Central Support Services,1009,GOVN - Policy & Governance,Professional Fees,40063,Services,5027,"To update the economic assessment in relation to the , new hospital proposed for the Cuerden Site",10/05/2023,0179978,"2,000.00",Revenue,Trebbi Continuum,77723,,
Chorley Borough Council,http://statistics.data.gov.uk/id/local-authority/30UE,Unapportionable Central OHeads,1009,GOVN - Policy & Governance,Misc Expenses,40200,Miscellaneous Expenses,5034,01 may 2023,10/05/2023,0180100,"1,490.40",Revenue,UK Healthcare (BDHSC),17241,,
Chorley Borough Council,http://statistics.data.gov.uk/id/local-authority/30UE,Tourism,1039,GOVN - Policy & Governance,Professional Fees,40063,Services,5027,"3 x Face Painters for Picnic in the park on Saturday 6 May at Astley Park Chorley from 10am - 3pm., 250 each x 3 = 750+VAT tota",17/05/2023,0180197,750.00,Revenue,UK Media and Events Limited,71221,,
Chorley Borough Council,http://statistics.data.gov.uk/id/local-authority/30UE,Unapportionable Central OHeads,1009,CUST - Customer & Digital,Postages,40082,Communication and Computing,5028,Daily Hybrid Mail & Annual Billing for Account H360363,10/05/2023,0179592,"4,088.91",Revenue,UKMAIL Ltd (Mail),57758,,
Chorley Borough Council,http://statistics.data.gov.uk/id/local-authority/30UE,Unapportionable Central OHeads,1009,CUST - Customer & Digital,Postages,40082,Communication and Computing,5028,Daily Hybrid Mail & Annual Billing for Account H360363,10/05/2023,0179598,"28,789.33",Revenue,UKMAIL Ltd (Mail),57758,,
Chorley Borough Council,http://statistics.data.gov.uk/id/local-authority/30UE,Unapportionable Central OHeads,1009,CUST - Customer & Digital,Postages,40082,Communication and Computing,5028,Daily Hybrid Mail & Annual Billing for Account H360363,10/05/2023,0179599,"2,378.85",Revenue,UKMAIL Ltd (Mail),57758,,
Chorley Borough Council,http://statistics.data.gov.uk/id/local-authority/30UE,Unapportionable Central OHeads,1009,CUST - Customer & Digital,Postages,40082,Communication and Computing,5028,Daily Hybrid Mail & Annual Billing for Account H360363,10/05/2023,0179600,"74,103.15",Revenue,UKMAIL Ltd (Mail),57758,,
Chorley Borough Council,http://statistics.data.gov.uk/id/local-authority/30UE,Payments of Precepts to Parish,1018,CUST - Customer & Digital,Parish Council Tax,04500,Revenue Account Transfers,Balance,Parish Precepts 23/24,17/05/2023,0180304,"6,135.00",Revenue,Ulnes Walton Parish Council,16210,,
Chorley Borough Council,http://statistics.data.gov.uk/id/local-authority/30UE,Development Control,1091,PLAN - Planning & Development,Agency Staff,13000,Direct Employee Expenses,5001,"Contract work to assist with planning application processing, Contractor: NAME REDACTED, Time period: 1 April 2023  31 December 2",03/05/2023,0179435,"1,768.00",Revenue,Vivid Resourcing Ltd,76938,,
Chorley Borough Council,http://statistics.data.gov.uk/id/local-authority/30UE,Development Control,1091,PLAN - Planning & Development,Agency Staff,13000,Direct Employee Expenses,5001,"Contract work to assist with planning application processing, Contractor: NAME REDACTED, Time period: 1 April 2023  31 December 2",03/05/2023,0179493,"1,898.00",Revenue,Vivid Resourcing Ltd,76938,,
Chorley Borough Council,http://statistics.data.gov.uk/id/local-authority/30UE,Development Control,1091,PLAN - Planning & Development,Agency Staff,13000,Direct Employee Expenses,5001,"Job: Contract work to assist with planning application processing, Contractor: NAME REDACTED, Time period: 1 January 2023  31 Mar",03/05/2023,0179655,"1,404.00",Revenue,Vivid Resourcing Ltd,76938,,
Chorley Borough Council,http://statistics.data.gov.uk/id/local-authority/30UE,Central Support Services,1009,GROW - Commercial & Property,Agency Staff,13000,Direct Employee Expenses,5001,Agency Fees for Estate Surveyor NAME REDACTED - 12mths,10/05/2023,0179910,888.24,Revenue,Vivid Resourcing Ltd,76938,,
Chorley Borough Council,http://statistics.data.gov.uk/id/local-authority/30UE,Central Support Services,1009,GROW - Commercial & Property,Agency Staff,13000,Direct Employee Expenses,5001,Surveyor fees for NAME REDACTED @49ph,10/05/2023,0179911,"2,107.00",Revenue,Vivid Resourcing Ltd,76938,,
Chorley Borough Council,http://statistics.data.gov.uk/id/local-authority/30UE,Central Support Services,1009,EARL - Communities,Agency Staff,13000,Direct Employee Expenses,5001,Consultancy Frees,24/05/2023,0179916,"4,239.12",Revenue,Vivid Resourcing Ltd,76938,,
Chorley Borough Council,http://statistics.data.gov.uk/id/local-authority/30UE,Central Support Services,1009,GROW - Commercial & Property,Agency Staff,13000,Direct Employee Expenses,5001,Surveyor fees for NAME REDACTED @49ph,10/05/2023,0179939,"1,886.50",Revenue,Vivid Resourcing Ltd,76938,,
Chorley Borough Council,http://statistics.data.gov.uk/id/local-authority/30UE,Central Support Services,1009,EARL - Communities,External Contractor,40198,Miscellaneous Expenses,5034,Consultancy fee`s requested by NAME REDACTED,10/05/2023,0180046,993.00,Revenue,Vivid Resourcing Ltd,76938,,
Chorley Borough Council,http://statistics.data.gov.uk/id/local-authority/30UE,Development Control,1091,PLAN - Planning & Development,Agency Staff,13000,Direct Employee Expenses,5001,"Contract work to assist with planning application processing, Contractor: NAME REDACTED, Time period: 1 April 2023  31 December 2",17/05/2023,0180054,"1,898.00",Revenue,Vivid Resourcing Ltd,76938,,
Chorley Borough Council,http://statistics.data.gov.uk/id/local-authority/30UE,Development Control,1091,PLAN - Planning & Development,Agency Staff,13000,Direct Employee Expenses,5001,"Contract work to assist with planning application processing, Contractor: NAME REDACTED, Time period: 1 April 2023  31 December 2",24/05/2023,0180580,"1,898.00",Revenue,Vivid Resourcing Ltd,76938,,
Chorley Borough Council,http://statistics.data.gov.uk/id/local-authority/30UE,Central Support Services,1009,EARL - Communities,Agency Staff,13000,Direct Employee Expenses,5001,Consultancy Frees,24/05/2023,0180581,993.00,Revenue,Vivid Resourcing Ltd,76938,,
Chorley Borough Council,http://statistics.data.gov.uk/id/local-authority/30UE,Central Support Services,1009,GROW - Commercial & Property,Agency Staff,13000,Direct Employee Expenses,5001,Final weekly fees for NAME REDACTED - Building surveyor,24/05/2023,0180636,"1,457.82",Revenue,Vivid Resourcing Ltd,76938,,
Chorley Borough Council,http://statistics.data.gov.uk/id/local-authority/30UE,Central Support Services,1009,GROW - Commercial & Property,Agency Staff,13000,Direct Employee Expenses,5001,Building Surveyor Fees for NAME REDACTED,24/05/2023,0180775,"1,340.82",Revenue,Vivid Resourcing Ltd,76938,,
Chorley Borough Council,http://statistics.data.gov.uk/id/local-authority/30UE,Capital,Capital,GROW - Commercial & Property,Other Capital Related Fees,03024,Capital Expenditure,Capital,Labour split,24/05/2023,0179626,"1,411.00",Capital,Walker Gabbott Electrical Ltd,83932,,
Chorley Borough Council,http://statistics.data.gov.uk/id/local-authority/30UE,Unapportionable Central OHeads,1009,GROW - Commercial & Property,Planned Maintenance,20006,Repairs Maintenance & Alts,5005,Town Hall - Electrical Planned Maintenance and remedials,03/05/2023,0179632,816.00,Revenue,Walker Gabbott Electrical Ltd,83932,,
Chorley Borough Council,http://statistics.data.gov.uk/id/local-authority/30UE,Unapportionable Central OHeads,1009,GROW - Commercial & Property,Planned Maintenance,20006,Repairs Maintenance & Alts,5005,Union St - Electrical Planned Maintenance and remedials,03/05/2023,0179632,"1,536.80",Revenue,Walker Gabbott Electrical Ltd,83932,,
Chorley Borough Council,http://statistics.data.gov.uk/id/local-authority/30UE,Unapportionable Central OHeads,1009,GROW - Commercial & Property,Planned Maintenance,20006,Repairs Maintenance & Alts,5005,Union St - Electrical Planned Maintenance and remedials,17/05/2023,0179905,525.00,Revenue,Walker Gabbott Electrical Ltd,83932,,
Chorley Borough Council,http://statistics.data.gov.uk/id/local-authority/30UE,Democratic Represent and  Mgnt,1007,GROW - Commercial & Property,Water - Metered Supplies,20022,Water Services,5009,1/4/23 to 31/3/24,10/05/2023,0180126,537.45,Revenue,WaterPlus 4028681263 Astley Hall,85031,,
Chorley Borough Council,http://statistics.data.gov.uk/id/local-authority/30UE,Unapportionable Central OHeads,1009,GROW - Commercial & Property,Water - Metered Supplies,20022,Water Services,5009,Stump lane destructor,03/05/2023,0179832,549.37,Revenue,WaterPlus 4083538012 Destructor Stump Lane Chorley,85458,,
Chorley Borough Council,http://statistics.data.gov.uk/id/local-authority/30UE,Unapportionable Central OHeads,1009,GROW - Commercial & Property,Water - Metered Supplies,20022,Water Services,5009,Stump Lane Destructor,03/05/2023,0179833,584.06,Revenue,WaterPlus 4083538012 Destructor Stump Lane Chorley,85458,,
Chorley Borough Council,http://statistics.data.gov.uk/id/local-authority/30UE,Unapportionable Central OHeads,1009,GROW - Commercial & Property,Water - Metered Supplies,20022,Water Services,5009,Stump Lane Destructor,03/05/2023,0179834,567.78,Revenue,WaterPlus 4083538012 Destructor Stump Lane Chorley,85458,,
Chorley Borough Council,http://statistics.data.gov.uk/id/local-authority/30UE,Unapportionable Central OHeads,1009,GROW - Commercial & Property,Water - Metered Supplies,20022,Water Services,5009,Stump Lane Destructor,03/05/2023,0179835,567.78,Revenue,WaterPlus 4083538012 Destructor Stump Lane Chorley,85458,,
Chorley Borough Council,http://statistics.data.gov.uk/id/local-authority/30UE,Homelessness,1075,GROW - Commercial & Property,Water - Metered Supplies,20022,Water Services,5009,28 jan 23 - 27 feb 23,24/05/2023,0180641,603.12,Revenue,WaterPlus 4160565113 Cotswold House,85562,,
Chorley Borough Council,http://statistics.data.gov.uk/id/local-authority/30UE,Homelessness,1075,GROW - Commercial & Property,Water - Metered Supplies,20022,Water Services,5009,28 feb 23 - 27 mar 23,24/05/2023,0180694,544.76,Revenue,WaterPlus 4160565113 Cotswold House,85562,,
Chorley Borough Council,http://statistics.data.gov.uk/id/local-authority/30UE,Homelessness,1075,GROW - Commercial & Property,Water - Metered Supplies,20022,Water Services,5009,28 dec 22 - 37 jan 23,24/05/2023,0180695,603.12,Revenue,WaterPlus 4160565113 Cotswold House,85562,,
Chorley Borough Council,http://statistics.data.gov.uk/id/local-authority/30UE,Homelessness,1075,GROW - Commercial & Property,Water - Metered Supplies,20022,Water Services,5009,28 nov 22 - 27 dec 22,24/05/2023,0180697,896.15,Revenue,WaterPlus 4160565113 Cotswold House,85562,,
Chorley Borough Council,http://statistics.data.gov.uk/id/local-authority/30UE,Homelessness,1075,GROW - Commercial & Property,Water - Metered Supplies,20022,Water Services,5009,28 oct 22 - 27 nov 22,24/05/2023,0180698,585.09,Revenue,WaterPlus 4160565113 Cotswold House,85562,,
Chorley Borough Council,http://statistics.data.gov.uk/id/local-authority/30UE,Homelessness,1075,GROW - Commercial & Property,Water - Metered Supplies,20022,Water Services,5009,28 sep 22 - 27 oct 22,24/05/2023,0180699,565.64,Revenue,WaterPlus 4160565113 Cotswold House,85562,,
Chorley Borough Council,http://statistics.data.gov.uk/id/local-authority/30UE,Homelessness,1075,GROW - Commercial & Property,Water - Metered Supplies,20022,Water Services,5009,28 may 22 - 27 aug 22,24/05/2023,0180700,"2,405.65",Revenue,WaterPlus 4160565113 Cotswold House,85562,,
Chorley Borough Council,http://statistics.data.gov.uk/id/local-authority/30UE,Business Support,1095,GROW - Commercial & Property,Water - Metered Supplies,20022,Water Services,5009,waste,10/05/2023,0180128,746.30,Revenue,WaterPlus 6002259172 The Strawberry Fields,86926,,
Chorley Borough Council,http://statistics.data.gov.uk/id/local-authority/30UE,Business Support,1095,GROW - Commercial & Property,Water - Metered Supplies,20022,Water Services,5009,waste,10/05/2023,0180129,826.27,Revenue,WaterPlus 6002259172 The Strawberry Fields,86926,,
Chorley Borough Council,http://statistics.data.gov.uk/id/local-authority/30UE,Business Support,1095,GROW - Commercial & Property,Water - Metered Supplies,20022,Water Services,5009,waste,10/05/2023,0180130,826.26,Revenue,WaterPlus 6002259172 The Strawberry Fields,86926,,
Chorley Borough Council,http://statistics.data.gov.uk/id/local-authority/30UE,Business Support,1095,GROW - Commercial & Property,Water - Metered Supplies,20022,Water Services,5009,waste,10/05/2023,0180131,891.34,Revenue,WaterPlus 6002259172 The Strawberry Fields,86926,,
Chorley Borough Council,http://statistics.data.gov.uk/id/local-authority/30UE,Business Support,1095,GROW - Commercial & Property,Water - Metered Supplies,20022,Water Services,5009,14/4 to 13/5/23,24/05/2023,0180622,"1,023.65",Revenue,WaterPlus 6002259172 The Strawberry Fields,86926,,
Chorley Borough Council,http://statistics.data.gov.uk/id/local-authority/30UE,Business Support,1095,GROW - Commercial & Property,Promotional Expenses,40159,Miscellaneous Expenses,5034,"Quotation Number- 12687, 1000, a4, 25 sheet SFDOP pads",31/05/2023,0180854,880.00,Revenue,WeBrand4You,68716,,
Chorley Borough Council,http://statistics.data.gov.uk/id/local-authority/30UE,Payments of Precepts to Parish,1018,CUST - Customer & Digital,Parish Council Tax,04500,Revenue Account Transfers,Balance,Parish Precept 23/24,17/05/2023,0180300,"14,993.00",Revenue,Wheelton Parish Council,16189,,
Chorley Borough Council,http://statistics.data.gov.uk/id/local-authority/30UE,Central Support Services,1009,PLAN - Planning & Development,Misc Expenses,40200,Miscellaneous Expenses,5034,"Pendle Style lectern , A1 display Lectern with 40mm return on face all round, Aluminium construction, Twin Leg 50 x 50 x 2000mm, ",24/05/2023,0179875,899.00,Revenue,White Hill Direct Ltd.,64098,,
Chorley Borough Council,http://statistics.data.gov.uk/id/local-authority/30UE,Payments of Precepts to Parish,1018,CUST - Customer & Digital,Parish Council Tax,04500,Revenue Account Transfers,Balance,Precepts,17/05/2023,0180297,"59,660.00",Revenue,Whittle-le-Woods Parish Council,18602,,
Chorley Borough Council,http://statistics.data.gov.uk/id/local-authority/30UE,Corporate Management,1008,CUST - Customer & Digital,Contributions Parish Councils,40144,Grants and Subscriptions,5031,Misc Contributions,17/05/2023,0180301,"1,483.00",Revenue,Withnell Parish Council,16211,,
Chorley Borough Council,http://statistics.data.gov.uk/id/local-authority/30UE,Payments of Precepts to Parish,1018,CUST - Customer & Digital,Parish Council Tax,04500,Revenue Account Transfers,Balance,Parish Precept 23/24,17/05/2023,0180301,"30,517.00",Revenue,Withnell Parish Council,16211,,
